Workbook

Sheet HOME
B1: NZTA PUBLIC TRANSPORT INVESTMENT MODEL
B3: 1) Select the region for analysis | AB3: =OFFSET(AE2,$AC$3,0) -> Hamilton | AC3: 2 | AD3: =AE3&AF3 -> Auckland (no data) | AE3: Auckland | AF3: (no data)
AD4: =AE4&AF4 -> Hamilton | AE4: Hamilton
B5: Region | G5: or | P5: copyright notice etc | AD5: =AE5&AF5 -> Wellington (no data) | AE5: Wellington | AF5: (no data)
AD6: =AE6&AF6 -> Christchurch (no data) | AE6: Christchurch | AF6: (no data)
B7: 2) Edit input data | AD7: =AE7&AF7 -> Default values (STCC) | AE7: Default values | AF7: (STCC)
P8: before you start
Z9: bus | AB9: train
Z10: peak | AA10: off-peak | AB10: peak | AC10: off-peak
Z11: 1 | AA11: 1 | AB11: 4 | AC11: 5 | AD11: frequency changes
AD12: frequency and density change
B13: 3) Run analysis | AD13: frequency and size change
AD14: size change
AD15: density change
Z17: 4 | AA17: 3 | AD17: 1
Z18: =1.2-Z17*0.2 -> 0.4 | AA18: =1.2-AA17*0.2 -> 0.6 | AD18: 0.8
B19: 4) View results | AD19: 0.6
AD20: 0.4
AD21: 0.2
AD22: 0
AA24: cost | AB24: freq | AC24: density | AD24: size | AE24: occupancy
B25: Preface | Z25: peak | AA25: =(AB25+AC25)*1+AD25*'Hamilton_unit costs'!D51/'Hamilton_unit costs'!D50+0.1*AE25 -> 0.64 | AB25: =IF(Z11=1,1-Z18,IF(Z11=2,(1-Z18)/2,IF(Z11=3,(1-Z18)/2,0))) -> 0.6 | AC25: =IF(Z11=2,(1-Z18)/2,IF(Z11=5,(1-Z18),0)) -> 0 | AD25: =IF(Z11=3,(1-Z18)/2,IF(Z11=4,(1-Z18),0)) -> 0 | AE25: =1-SUM(AB25:AD25) -> 0.4
Z26: interpeak | AA26: =(AB26+AC26)*1+AD26*'Hamilton_unit costs'!E51/'Hamilton_unit costs'!E50+0.1*AE26 -> 0.46 | AB26: =IF(AA11=1,1-AA18,IF(AA11=2,(1-AA18)/2,IF(AA11=3,(1-AA18)/2,0))) -> 0.4 | AC26: =IF(AA11=2,(1-AA18)/2,IF(AA11=5,(1-AA18),0)) -> 0 | AD26: =IF(AA11=3,(1-AA18)/2,IF(AA11=4,(1-AA18),0)) -> 0 | AE26: =1-SUM(AB26:AD26) -> 0.6
B27: This workbook models the interaction between public transport fares service levels and patronage and private travel costs.
B28: The model can be used to optimise fares or can be used to view the effect of incremental changes to fares on service levels, public and private costs
B29: by using either the Glaister Lewis (optimise fare) or Parry Small (increment fare) sheets.
B30: Results are summarised on the Report sheet.
B32: Optimisation can be undertaken in the context of different policy regimen and policy constraints.
B34: The purpose of the model is to assist regional authorities and the New Zealand Transport Agency (NZTA) to make informed decisions about fare policies.
B35: The model has been developed initially for bus services Hamilton but is capable of being extended to apply to other cities and modes.
B37: Detailed instruction for the use of the model can be found in NZTA research report RR 524.
B39: This model is copyright © New Zealand Transport Agency 2013. Material in it may be reproduced for personal or in-house use without formal permission or charge,
B40: provided suitable acknowledgement is made to this model and associated publication and NZTA as the source.
B42: Requests and enquiries about the reproduction of material in this model and the associated publication for any other purpose should be made to:
B43: The Research Manager; Programmes, Funding and Assessment; National office, NZ Transport Agency, Private Bag 6995, Wellington, New Zealand.
B49: Set-up instructions
B51: If your computer is not set up to run solver and visual basic, some features of the workbook will result in errors.
B52: This section describes the preliminary steps necessary to get the workbook functioning on a windows PC.
B54: First of all macros may need to be enabled.
B55: If you get a message saying 'Macros have been disabled [options]' | I55: click [options] and select 'enable this content'.
B57: From the HOME page select [optimise fare] or click the 'Glaister Lewis' tab.
B58: Click the blue-grey box [calculate optimum fare] (this is on row 23).
B59: if you get a message box headed 'solver results' your computer is already set up to run VBA.
B60: If you get error messages and/or pages of code you need to continue with the set up. Close the error messages.
B62: For excel 2007, click the round windows button at the top left and then click [excel options];
B63: For excel 2010, click 'File' and then 'Options'.
B65: Click 'Add-ins'
B66: You will see a list of active and inactive add-ins. You need to have 'Analysis ToolPak - VBA' and 'Solver Add-in' active.
B67: To add an add-in to the active list, select 'Manage Add-ins' and click [Go].
B69: This gives a pop-up box to manage add-ins. Select 'Analysis ToolPak - VBA' and 'Solver Add-in' and click [ok].
B71: If you are asked whether you want to install these now, click [yes].
B73: Once you have installed the Add-ins the workbook should run.

Sheet Hamilton_tripdata
A1: HAMILTON TRIP DATA
C2: INPUT DATA | H2: CHECK DATA | M2: SCRATCH
A3: Passenger Service Data
B4: units | C4: Bus | D4: Train | E4: source | F4: comment | H4: Fare recovery | I4: =C7/C10 -> 0.3001644417 | M4: This area is for calculations that support the input data.
A5: Annual passengers | B5: (M) | C5: 4.564 | D5: This option | E5: EW/NZTA | H5: Peak buses | I5: =N15 -> 86.58886003 | M5: The calculations are likely to be centre specific
A6: Passenger-km | B6: (M) | C6: 29.502 | D6: is not | E6: EW/NZTA | H6: average load | I6: =C6/C8 -> 6.371922246
A7: Fare revenue | B7: ($M) | C7: 5.197 | D7: functional | E7: EW/NZTA | F7: excl gst | H7: fare factor | I7: =C7/(C15*C5)*100 -> 0.4950844035 | M7: Reconcilliation of WRTM data and EW data. WRTM data are for a typical am peak and interpeak
A8: service km | B8: (M) | C8: 4.63 | D8: yet | E8: EW/NZTA | H8: GST | I8: 0.15
A9: Contract payment | B9: ($M) | C9: 12.11684294 | E9: EW/NZTA | N9: 500 | O9: 800
A10: Gross operating cost | B10: ($M) | C10: =C7+C9 -> 17.31384294 | E10: calculated | H10: KEY | N10: am | O10: interpeak | P10: annual
A11: Average trip length | B11: km | C11: =IF(C5>0,C6/C5,0) -> 6.464066608 | E11: calculated | I11: input number | M11: Patronage | N11: =$F$27 -> 4663 | O11: =F37 -> 2172 | P11: =N11*N9+O11*O9 -> 4069100
I12: calibrated number | M12: pax km | N12: =F47 -> 30003.04 | O12: =$F$55 -> 20553.94 | P12: =N12*N9+O12*O9 -> 31444672
A13: Fares | M13: km in service | N13: =N12/7.7 -> 3896.498701 | O13: =O12/5.8 -> 3543.782759 | P13: =N13*N9+O13*O9 -> 4783275.558
A14: Peak single | B14: cents | C14: 310 | E14: EW | F14: incl gst | M14: Vehicle hours | N14: =N13/30 -> 129.88329 | O14: =O13/25 -> 141.7513103 | P14: =N14*N9+O14*O9 -> 178342.6933
A15: peak multitrip | B15: cents | C15: 230 | D15: This option | E15: EW | F15: incl gst | M15: peak buses | N15: =N14/1.5 -> 86.58886003
A16: peak education | B16: cents | C16: 160 | D16: is not | E16: EW | F16: incl gst
A17: Interpeak single | B17: cents | C17: 310 | D17: functional | E17: EW | F17: incl gst | M17: Public transport trip length
A18: interpeak multitrip | B18: cents | C18: 230 | D18: yet | E18: EW | F18: incl gst
A19: interpeak education | B19: cents | C19: =C16 -> 160 | E19: EW | F19: incl gst | M19: WRTM gives the average trip distance but not the public transport distance.
M20: We have applied a factor to the WRTM distances based on the EW data. (the average bus distance can be expected to be less than the average car distance)
A21: Transport model data | C21: These data are from WRTM Technical Note 16. Trips per period | M21: factor | N21: 0.8 | P21: we changed N20
M22: Average from EW | N22: =C6/C5 -> 6.464066608 | P22: until N21 equalled N22
A23: am peak trips | C23: HBW | D23: HBE | E23: Other | F23: Total | M23: average calculated | N23: =F47/F27 -> 6.434278362
A24: Vehicle Driver | B24: trips | C24: 76774 | D24: 5540 | E24: 125710 | F24: =SUM(C24:E24) -> 208024
A25: Vehicle Passenger | B25: trips | C25: 6142 | D25: 38137 | E25: 58477 | F25: =SUM(C25:E25) -> 102756
A26: Rail passenger | B26: trips | C26: not functional yet | F26: =SUM(C26:E26) -> 0
A27: Bus Passenger | B27: trips | C27: 1511 | D27: 1953 | E27: 1199 | F27: =SUM(C27:E27) -> 4663
A28: Active | B28: trips | C28: 6103 | D28: 33191 | E28: 14334 | F28: =SUM(C28:E28) -> 53628
A29: Average trip length | B29: km | C29: 11.2 | D29: 5.9 | E29: 7.554545455
A30: Average trip time | B30: min | C30: 12.6 | D30: 7.3 | E30: 8.6
A31: Headway peak | B31: min | C31: =60/timetable!B23 -> 14.28571429 | D31: =C31 -> 14.28571429 | E31: =C31 -> 14.28571429
A33: interpeak trips | C33: HBW | D33: OHB | E33: NHB | F33: Total
A34: Vehicle Driver | B34: trips | C34: 28172 | D34: 72710 | E34: 90817 | F34: =SUM(C34:E34) -> 191699
A35: Vehicle Passenger | B35: trips | C35: 1525 | D35: 33384 | E35: 27915 | F35: =SUM(C35:E35) -> 62824
A36: Rail passenger | B36: trips | F36: =SUM(C36:E36) -> 0
A37: Bus Passenger | B37: trips | C37: 306 | D37: 1432 | E37: 434 | F37: =SUM(C37:E37) -> 2172
A38: Active | B38: trips | C38: 2316 | D38: 12979 | E38: 18581 | F38: =SUM(C38:E38) -> 33876
A39: Average trip length | B39: km | C39: 10.5 | D39: 8.5 | E39: 11.91
A40: Average trip time | B40: min | C40: 11.6 | D40: 11.2 | E40: 9.8
A41: Headway interpeak | B41: min | C41: =60/timetable!C23 -> 16.21621622 | D41: =C41 -> 16.21621622 | E41: =C41 -> 16.21621622
A43: am peak kilometres | C43: HBW | D43: HBE | E43: Other
A44: Vehicle Driver | B44: p-km | C44: =C24*C$29 -> 859868.8 | D44: =D24*D$29 -> 32686 | E44: =E24*E$29 -> 949681.9091 | F44: =SUM(C44:E44) -> 1842236.709
A45: Vehicle Passenger | B45: p-km | C45: =C25*C$29*N21 -> 55032.32 | D45: =D25*D$29 -> 225008.3 | E45: =E25*E$29 -> 441767.1545 | F45: =SUM(C45:E45) -> 721807.7745
A46: Rail passenger | B46: p-km | F46: =SUM(C46:E46) -> 0
A47: Bus Passenger | B47: p-km | C47: =C27*C$29*N21 -> 13538.56 | D47: =D27*D$29*N21 -> 9218.16 | E47: =E27*E$29*N21 -> 7246.32 | F47: =SUM(C47:E47) -> 30003.04
A48: Active | B48: km | C48: =C28*C$29 -> 68353.6 | D48: =D28*D$29 -> 195826.9 | E48: =E28*E$29 -> 108286.8545 | F48: =SUM(C48:E48) -> 372467.3545
C49: =SUM(C44:C48) -> 996793.28 | D49: =SUM(D44:D48) -> 462739.36 | E49: =SUM(E44:E48) -> 1506982.238 | F49: =SUM(F44:F48) -> 2966514.878
A51: interpeak kilometres | C51: HBW | D51: OHB | E51: NHB
A52: Vehicle Driver | B52: p-km | C52: =C34*C$39 -> 295806 | D52: 618035 | E52: 1081630.47 | F52: =SUM(C52:E52) -> 1995471.47
A53: Vehicle Passenger | B53: p-km | C53: 16012.5 | D53: 283764 | E53: 332467.65 | F53: =SUM(C53:E53) -> 632244.15
A54: Rail passenger | B54: p-km
A55: Bus Passenger | B55: p-km | C55: =C37*C$39 -> 3213 | D55: 12172 | E55: 5168.94 | F55: =SUM(C55:E55) -> 20553.94
A56: Active | B56: km | C56: 24318 | D56: 110321.5 | E56: 221299.71 | F56: =SUM(C56:E56) -> 355939.21
C57: =SUM(C52:C56) -> 339349.5 | D57: =SUM(D52:D56) -> 1024292.5 | E57: =SUM(E52:E56) -> 1640566.77 | F57: =SUM(F52:F56) -> 3004208.77

Sheet Hamilton_unit costs
A1: HAMILTON UNIT COSTS | G1: Unit costs are Hamilton specific where data exists or could be estimated
B2: All costs in cents per kilometre | G2: Data is mostly entered per vehicle but is converted to per person
B3: CAR | D3: BUS | F3: TRAIN | H3: COMMENT | K3: Key
B4: Per vehicle km | D4: Per vehicle km | F4: Per train km | L4: Unit costs from the surface transport costs and charges study
A5: PER VEHICLE COSTS | B5: Peak | C5: Off peak | D5: Peak | E5: Off peak | F5: Peak | G5: Off peak | L5: Region specific data
A6: A Private resource costs | L6: calculated
A7: Operations and vehicle costs | B7: ='STCC Data'!B8 -> 15.4 | C7: ='STCC Data'!C8 -> 14.6
A8: Operations - time | B8: ='STCC Data'!B9 -> 21.6 | C8: ='STCC Data'!C9 -> 17.8 | K8: SCRATCH AREA
A9: Accidents internal | B9: ='STCC Data'!B10 -> -3.3 | C9: ='STCC Data'!C10 -> 5.2 | D9: ='STCC Data'!D10 -> 9.8 | E9: ='STCC Data'!E10 -> 13.2
A10: Parking | B10: ='STCC Data'!B11 -> 60 | C10: ='STCC Data'!C11 -> 30 | K10: This area is for calculations that support the input data.
A11: B Private charges | K11: The calculations are likely to be centre specific
A12: Fuel duty | B12: ='STCC Data'!B14 -> 3.8 | C12: ='STCC Data'!C14 -> 3.3 | D12: ='STCC Data'!D14 -> 9.5 | E12: ='STCC Data'!E14 -> 8.25
A13: Fares | K13: Bus operating cost
A14: C. Provider costs
A15: Road infrastruction o&m | B15: ='STCC Data'!B18 -> 0.1 | C15: ='STCC Data'!C18 -> 0.1 | D15: ='STCC Data'!D18 -> 5 | E15: ='STCC Data'!E18 -> 5 | K15: Standard operating costs (source IPW/DRL)
A16: Operations and vehicle costs | D16: =Q20*N29 -> 716.1362214 | E16: =T20*N29 -> 227.861525 | K16: Assume speed | L16: 30 | M16: km/h
B17: =B15+B16 -> 0.1 | C17: =C15+C16 -> 0.1 | D17: =D15+D16 -> 721.1362214 | E17: =E15+E16 -> 232.861525 | L17: dollars per | M17: cent per | N17: dollars per year | Q17: peak | R17: peak | S17: marginal | T17: intepeak | U17: marginal
A18: D1. Congestion cost | L18: hour | M18: km | N18: bus op | O18: bus cap | P18: o/h | Q18: c /km | R18: capacity | S18: cost | T18: c /km | U18: cost
A19: HBW | B19: =M43 -> 7.582858024 | C19: ='Hamilton_unit costs'!O43 -> 6.079262453 | D19: =B19*3 -> 22.74857407 | E19: =C19*3 -> 18.23778736 | K19: mini bus | L19: 20 | M19: 30 | N19: 2500 | O19: =capcost!J3*1000 -> 15800 | P19: 0.15 | Q19: =((L19+(N19+O19)/400)/$L$16*100+M19)*(1+P19) -> 286.5416667 | R19: =capcost!D3 -> 19 | T19: =(L19/$L$16*100+M19)*(1+P19) -> 111.1666667
A20: HBE | B20: =B19 -> 7.582858024 | D20: =D19 -> 22.74857407 | K20: medium bus | L20: 22 | M20: 90 | N20: 5000 | O20: =capcost!J5*1000 -> 37000 | P20: 0.15 | Q20: =((L20+(N20+O20)/400)/$L$16*100+M20)*(1+P20) -> 590.3333333 | R20: =capcost!D5 -> 64 | T20: =(L20/$L$16*100+M20)*(1+P20) -> 187.8333333
A21: NHB | C21: =C22 -> 6.079262453 | E21: =C21*3 -> 18.23778736 | K21: large bus | L21: 22 | M21: 110 | N21: 6000 | O21: =capcost!J7*1000 -> 38900 | P21: 0.15 | Q21: =((L21+(N21+O21)/400)/$L$16*100+M21)*(1+P21) -> 641.125 | R21: =capcost!D7 -> 81 | S21: =LINEST(Q19:Q21,R19:R21) -> 5.930212731 | T21: =(L21/$L$16*100+M21)*(1+P21) -> 210.8333333 | U21: =LINEST(T19:T21,R19:R21) -> 1.627205803
A22: Other | B22: =B19 -> 7.582858024 | C22: ='Hamilton_unit costs'!O43 -> 6.079262453 | D22: =B22*3 -> 22.74857407 | E22: =C22*3 -> 18.23778736 | H22: pcu/bus=3
A23: D.2 Environmental | K23: Reconcilliation with Hamilton data
A24: HBW | B24: =EEM_Values!B20*EEM_Values!C20/10+EEM_Values!D21*100 -> 9 | C24: =B24 -> 9 | D24: ='STCC Data'!D26 -> 38.2 | E24: ='STCC Data'!E26 -> 26.7 | L24: peak | M24: interpeak | N24: std cost
A25: HBE | B25: =B24 -> 9 | D25: =D24 -> 38.2 | K25: Vehicle km | L25: =Hamilton_tripdata!N13 -> 3896.498701 | M25: =Hamilton_tripdata!O13 -> 3543.782759 | N25: =(L25*Hamilton_tripdata!N9+M25*Hamilton_tripdata!O9)*M20/100 -> 4304948.002
A26: NHB | C26: =C24 -> 9 | E26: =E24 -> 26.7 | K26: Vehicle hours | L26: =Hamilton_tripdata!N14 -> 129.88329 | M26: =Hamilton_tripdata!O14 -> 141.7513103 | N26: =((L26*Hamilton_tripdata!N9+'Hamilton_unit costs'!M26*Hamilton_tripdata!O9)*L20) -> 3923539.253
A27: Other | B27: =B24 -> 9 | C27: =C24 -> 9 | D27: =D25 -> 38.2 | E27: =E26 -> 26.7 | K27: peak buses | L27: =Hamilton_tripdata!N15*1.15 -> 99.57718903 | N27: =+L27*(N20+O20) -> 4182241.939
A28: D1. Accidents | K28: Annual cost | N28: =(N25+N26+N27)*(1+P20) -> 14272338.57
A29: accidents external | B29: ='STCC Data'!B25 -> -3 | C29: =-'STCC Data'!C25 -> -2.3 | D29: ='STCC Data'!D25 -> -12.2 | E29: =-'STCC Data'!E25 -> -5.9 | K29: Hamilton factor | N29: =Hamilton_tripdata!C10/N28*10^6 -> 1.213104836
A31: PER PERSON COSTS | B31: =B2 -> All costs in cents per kilometre | E31: Most of these are calculated | K31: Congestion cost
B32: CAR | D32: BUS | F32: TRAIN | L32: These data are from special WRTM runs commissioned by the consultant
B33: Per vehicle km | D33: Per vehicle km | F33: Per train km | L33: AM peak | M33: minus 10% | N33: Interpeak Base | O33: minus 10%
B34: Peak | C34: Off peak | D34: Peak | E34: Off peak | F34: Peak | G34: Off peak | K34: total trips | L34: 223276.646 | M34: 201762.805 | N34: 207286.107 | O34: 187459.391
A35: Occupancy | B35: =(Hamilton_tripdata!F24+Hamilton_tripdata!F25)/Hamilton_tripdata!F24 -> 1.493962235 | C35: =(Hamilton_tripdata!F34+Hamilton_tripdata!F35)/Hamilton_tripdata!F34 -> 1.327722106 | D35: =Hamilton_tripdata!N12/Hamilton_tripdata!N13 -> 7.7 | E35: =Hamilton_tripdata!O12/Hamilton_tripdata!O13 -> 5.8 | K35: total time | L35: 2834540.141 | M35: 2508217.615 | N35: 2871839.829 | O35: 2568069.835
A36: A Private resource costs | K36: distance | L36: 2658623.017 | M36: 2408663.445 | N36: 2767237.931 | O36: 2515576.941
A37: Operations and vehicle costs | B37: =B7/B$35 -> 10.30815883 | C37: 10.99627696
A38: Operations - time | B38: 14.4581968 | C38: 13.40641985 | D38: ='STCC Data'!D37 -> 58 | E38: ='STCC Data'!E37 -> 58 | K38: ave time | L38: =L35/$L$34 -> 12.69519312 | M38: =M35/$M$34 -> 12.43151638 | N38: =N35/$N$34 -> 13.85447327 | O38: =O35/$O$34 -> 13.69933948
A39: Accidents internal | B39: -2.208891177 | C39: 3.916482204 | D39: =D9/D$35 -> 1.272727273 | E39: =E9/E$35 -> 2.275862069 | K39: ave dist | L39: =L36/$L$34 -> 11.90730452 | M39: =M36/$M$34 -> 11.93809456 | N39: =N36/$N$34 -> 13.34984756 | O39: =O36/$O$34 -> 13.41931673
A40: Parking | B40: 40.16165776 | C40: 22.59508964 | K40: ave speed | L40: =L39/L38*60 -> 56.27628225 | M40: =M39/M38*60 -> 57.61852793 | N40: =N39/N38*60 -> 57.81460168 | O40: =O39/O38*60 -> 58.77356386
A41: B Private charges | M41: am peak | O41: interpeak
A42: Fuel duty | B42: =B12/B$35 -> 2.543571658 | C42: =C12/C$35 -> 2.48545986 | K42: Externality | L42: minutes per km | M42: =($L35*M36/$L36-M35)/(L$36-M36) -> 0.2393327099 | O42: =($N35*O36/$N36-O35)/(N$36-O36) -> 0.1692602075
A43: Fares HBW | D43: =Hamilton_tripdata!C15/Hamilton_tripdata!C29/Hamilton_tripdata!$N$21 -> 25.66964286 | E43: =Hamilton_tripdata!C18/Hamilton_tripdata!C40/Hamilton_tripdata!N21 -> 24.78448276 | L43: cents per km | M43: =M42/60*EEM_Values!B17*100 -> 7.582858024 | O43: =O42/60*EEM_Values!C17*100 -> 6.079262453
A44: HBE | D44: =Hamilton_tripdata!C16/Hamilton_tripdata!D29/Hamilton_tripdata!N21 -> 33.89830508
A45: NHB | E45: =Hamilton_tripdata!C17/(Hamilton_tripdata!D39+Hamilton_tripdata!E39)*2/Hamilton_tripdata!N21 -> 37.97158256
A46: Other | D46: =Hamilton_tripdata!C14/Hamilton_tripdata!E29/Hamilton_tripdata!N21 -> 51.29362214 | E46: =E45 -> 37.97158256
A47: C. Provider costs
A48: Road infrastruction o&m | B48: =B15/B$35 -> 0.06693609627 | C48: =C15/C$35 -> 0.07531696546 | D48: =D15/D$35 -> 0.6493506494 | E48: =E15/E$35 -> 0.8620689655
A49: Operations and vehicle costs | D49: =D16/D$35 -> 93.00470407 | E49: =E16/E35 -> 39.28646982
B50: =B48+B49 -> 0.06693609627 | C50: =C48+C49 -> 0.07531696546 | D50: =SUM(D48:D49) -> 93.65405472 | E50: =SUM(E48:E49) -> 40.14853879
A51: Capacity expansion | D51: =S21+D48 -> 6.579563381 | E51: =U21+E48 -> 2.489274768
A52: D. External costs
A53: D.1 Congestion
A54: HBW | B54: =B19/B$35 -> 5.075669147 | C54: =C19/C$35 -> 4.578716002 | D54: =D19/D$35 -> 2.954360269 | E54: =E19/E$35 -> 3.144446096
A55: HBE | B55: =B20/B$35 -> 5.075669147 | D55: =D20/D$35 -> 2.954360269
A56: NHB | C56: =C21/C$35 -> 4.578716002 | E56: =E21/E$35 -> 3.144446096
A57: Other | B57: =B22/B$35 -> 5.075669147 | C57: =C22/C$35 -> 4.578716002 | D57: =D22/D$35 -> 2.954360269 | E57: =E22/E$35 -> 3.144446096
A58: D.2 Environment
A59: HBW | B59: =B24/B$35 -> 6.024248665 | C59: =C24/C$35 -> 6.778526891 | D59: =D24/D$35 -> 4.961038961 | E59: =E24/E$35 -> 4.603448276
A60: HBE | B60: =B25/B$35 -> 6.024248665 | D60: =D25/D$35 -> 4.961038961
A61: NHB | C61: =C26/C$35 -> 6.778526891 | E61: =E26/E$35 -> 4.603448276
A62: Other | B62: =B27/B$35 -> 6.024248665 | C62: =C27/C$35 -> 6.778526891 | D62: =D27/D$35 -> 4.961038961 | E62: =E27/E$35 -> 4.603448276
A63: D.3 Accidents
A64: accidents external | B64: =B29/B$35 -> -2.008082888 | C64: =C29/C$35 -> -1.732290206 | D64: =D29/D$35 -> -1.584415584 | E64: =E29/E$35 -> -1.017241379 | Y64: MC dwell
A65: D.Total
A66: HBW | B66: =B54+B59+B$64 -> 9.091834924 | C66: =C54+C59+C$64 -> 9.624952688 | D66: =D54+D59+D$64 -> 6.330983646 | E66: =E54+E59+E$64 -> 6.730652993
A67: HBE | B67: =B55+B60+B$64 -> 9.091834924 | D67: =D55+D60+D$64 -> 6.330983646
A68: NHB | C68: =C56+C61+C$64 -> 9.624952688 | E68: 6.730652993
A69: Other | B69: 9.091834924 | C69: 9.624952688 | D69: 6.330983646 | E69: 6.730652993
A70: E. User Economies of Scale | Z70: travelling | AA70: waiting | AB70: walking | AC70: crowding
A71: Mohring effect (per km) | D71: =EEM_Values!C10*Hamilton_tripdata!C31*EEM_Values!B8*100/60/Hamilton_tripdata!C29/Hamilton_tripdata!N21 -> 14.80442177 | E71: =Hamilton_tripdata!C41*EEM_Values!C10*EEM_Values!C8/Hamilton_tripdata!C39/Hamilton_tripdata!N21*100/60 -> 16.39124839 | Y71: value of time | Z71: =#REF! ->  | AA71: =#REF! ->  | AB71: =#REF! ->  | AC71: 20 | AE71: cents/minute
A72: Density | D72: =5*EEM_Values!B7*100/60/Hamilton_tripdata!C29/Hamilton_tripdata!N21 -> 32.38467262 | E72: =5*EEM_Values!B7*100/60/Hamilton_tripdata!C39/Hamilton_tripdata!N21 -> 34.54365079
A73: access | D73: =IF(HOME!AB25+HOME!AC25>0,(D71*HOME!AB25+D72*HOME!AC25)/(HOME!AB25+HOME!AC25),D71) -> 14.80442177 | E73: =IF(HOME!AB26+HOME!AC26>0,(E71*HOME!AB26+E72*HOME!AC26)/(HOME!AB26+HOME!AC26),E71) -> 16.39124839

Sheet Wellington_tripdata
A1: WELLINGTON TRIP DATA
C2: INPUT DATA | H2: CHECK DATA | M2: SCRATCH
A3: Passenger Service Data
B4: units | C4: Bus | D4: Train | E4: source | F4: comment | H4: Fare recovery | M4: This area is for calculations that support the input data.
A5: Annual passengers | B5: (M) | E5: GW/NZTA | H5: Peak buses | M5: The calculations are likely to be centre specific
A6: Passenger-km | B6: (M) | D6: This option | E6: GW/NZTA | H6: average load
A7: Multitrip fare | B7: $ | D7: is not | E7: GW/NZTA | H7: fare factor
A8: Fare revenue | B8: ($M) | D8: functional | E8: GW/NZTA | F8: excl gst
A9: service km | B9: (M) | D9: yet | E9: GW/NZTA
A10: Contract payment | B10: ($M) | E10: GW/NZTA | H10: KEY
A11: Gross operating cost | B11: ($M) | E11: calculated | I11: input number
A12: Average trip length | B12: km | E12: calculated
E14: THIS SHEET IS INCLUDED FOR DEMONSTRATION ONLY
A15: Transport model data
A17: am peak trips | C17: HBW | D17: HBE | E17: Other | F17: Total
A18: Vehicle Driver | B18: trips | F18: =SUM(C18:E18) -> 0
A19: Vehicle Passenger | B19: trips | F19: =SUM(C19:E19) -> 0
A20: Rail passenger | B20: trips | C20: not functional yet | F20: =SUM(C20:E20) -> 0
A21: Bus Passenger | B21: trips | F21: =SUM(C21:E21) -> 0
A22: Active | B22: trips | F22: =SUM(C22:E22) -> 0
A23: Average trip length | B23: km
A25: interpeak trips | C25: HBW | D25: OHB | E25: NHB | F25: Total
A26: Vehicle Driver | B26: trips | F26: =SUM(C26:E26) -> 0
A27: Vehicle Passenger | B27: trips | F27: =SUM(C27:E27) -> 0
A28: Rail passenger | B28: trips | F28: =SUM(C28:E28) -> 0
A29: Bus Passenger | B29: trips | F29: =SUM(C29:E29) -> 0
A30: Active | B30: trips | F30: =SUM(C30:E30) -> 0
A31: Average trip length | B31: km
A33: am peak kilometres | C33: HBW | D33: HBE | E33: Other
A34: Vehicle Driver | B34: p-km | C34: =C18*C$23 -> 0 | D34: =D18*D$23 -> 0 | E34: =E18*E$23 -> 0 | F34: =SUM(C34:E34) -> 0
A35: Vehicle Passenger | B35: p-km | F35: =SUM(C35:E35) -> 0
A36: Rail passenger | B36: p-km | F36: =SUM(C36:E36) -> 0
A37: Bus Passenger | B37: p-km | F37: =SUM(C37:E37) -> 0
A38: Active | B38: km | F38: =SUM(C38:E38) -> 0
C39: =SUM(C34:C38) -> 0 | D39: =SUM(D34:D38) -> 0 | E39: =SUM(E34:E38) -> 0 | F39: =SUM(F34:F38) -> 0
A41: interpeak kilometres | C41: HBW | D41: OHB | E41: NHB
A42: Vehicle Driver | B42: p-km | C42: =C26*C$31 -> 0 | D42: 0 | E42: 0 | F42: =SUM(C42:E42) -> 0
A43: Vehicle Passenger | B43: p-km | C43: 0 | D43: 0 | E43: 0 | F43: =SUM(C43:E43) -> 0
A44: Rail passenger | B44: p-km
A45: Bus Passenger | B45: p-km | C45: =C29*C$31 -> 0 | D45: 0 | E45: 0 | F45: =SUM(C45:E45) -> 0
A46: Active | B46: km | C46: 0 | D46: 0 | E46: 0 | F46: =SUM(C46:E46) -> 0
C47: =SUM(C42:C46) -> 0 | D47: =SUM(D42:D46) -> 0 | E47: =SUM(E42:E46) -> 0 | F47: =SUM(F42:F46) -> 0

Sheet elasticities
A1: ELASTICITIES
A2: This sheet uses the properties of the logit model coeficients to calculate the elasticities | Z2: SCRATCH AREA
A3: Input Data | B3: Under normal circumstances, no user input is necessary
C4: ="Data for "&HOME!AB3 -> Data for Hamilton | H4: Data for all five centres is collected here. The Offset function is used to select the desired centre and place it in columns C-E
C5: Trips | D5: Share | E5: Fare | F5: gen cost | H5: Trips | I5: (balance is active mode) | N5: Market share | P5: (balance is active mode) | T5: Fare / operating cost | V5: cents | Z5: generalised cost | AB5: cents
A6: Home based work | H6: Auckland | I6: Hamilton | J6: Wellington | K6: Christchurch | L6: Dunedin | N6: Auckland | O6: Hamilton | P6: Wellington | Q6: Christchurch | R6: Dunedin | T6: Auckland | U6: Hamilton | V6: Wellington | W6: Christchurch | X6: Dunedin | Z6: Auckland | AA6: Hamilton | AB6: Wellington | AC6: Christchurch | AD6: Dunedin
A7: car | B7: peak | C7: =OFFSET(G7,0,HOME!$AC$3) -> 914901.12 | D7: =OFFSET(M7,0,HOME!$AC$3) -> 0.6847330493 | E7: =OFFSET(S7,0,HOME!$AC$3) -> 190.4 | F7: =OFFSET(Y7,0,HOME!$AC$3) -> 605.696 | I7: =(Hamilton_tripdata!C44+Hamilton_tripdata!C45) -> 914901.12 | O7: =I7/$I$13 -> 0.6847330493 | U7: =EEM_Values!B5*Hamilton_tripdata!C29 -> 190.4 | AA7: =U7+Hamilton_tripdata!C30*EEM_Values!B4 -> 605.696
B8: off peak | C8: =OFFSET(G8,0,HOME!$AC$3) -> 311818.5 | D8: =OFFSET(M8,0,HOME!$AC$3) -> 0.2333721401 | E8: =OFFSET(S8,0,HOME!$AC$3) -> 178.5 | F8: =OFFSET(Y8,0,HOME!$AC$3) -> 627.536 | I8: =(Hamilton_tripdata!C52+Hamilton_tripdata!C53) -> 311818.5 | O8: =I8/$I$13 -> 0.2333721401 | U8: =EEM_Values!B5*Hamilton_tripdata!C39 -> 178.5 | AA8: =U8+Hamilton_tripdata!C40*EEM_Values!C4 -> 627.536
A9: bus | B9: peak | C9: =OFFSET(G9,0,HOME!$AC$3) -> 13538.56 | D9: =OFFSET(M9,0,HOME!$AC$3) -> 0.01013256981 | E9: =OFFSET(S9,0,HOME!$AC$3) -> 230 | F9: =OFFSET(Y9,0,HOME!$AC$3) -> 969.7757714 | I9: =Hamilton_tripdata!C47 -> 13538.56 | O9: =I9/$I$13 -> 0.01013256981 | U9: =Hamilton_tripdata!C15 -> 230 | AA9: =U9+5*EEM_Values!B$7+(EEM_Values!B$10+EEM_Values!C$10*Hamilton_tripdata!C$31)*EEM_Values!B$8+Hamilton_tripdata!C$29*Hamilton_tripdata!$N$21*60/30*EEM_Values!B$6 -> 969.7757714
B10: off peak | C10: =OFFSET(G10,0,HOME!$AC$3) -> 3213 | D10: =OFFSET(M10,0,HOME!$AC$3) -> 0.002404683128 | E10: =OFFSET(S10,0,HOME!$AC$3) -> 230 | F10: =OFFSET(Y10,0,HOME!$AC$3) -> 898.4678919 | I10: =Hamilton_tripdata!C55 -> 3213 | O10: =I10/$I$13 -> 0.002404683128 | U10: =Hamilton_tripdata!C18 -> 230 | AA10: =U10+5*EEM_Values!C$7+(EEM_Values!B$10+EEM_Values!C$10*Hamilton_tripdata!$C$41)*EEM_Values!C$8+Hamilton_tripdata!C$39*Hamilton_tripdata!$N$21*60/30*EEM_Values!C$6 -> 898.4678919
A11: train | B11: peak | C11: =OFFSET(G11,0,HOME!$AC$3) -> 0 | D11: =OFFSET(M11,0,HOME!$AC$3) -> 0 | E11: =OFFSET(S11,0,HOME!$AC$3) -> 0 | F11: =OFFSET(Y11,0,HOME!$AC$3) -> 0
B12: off peak | C12: =OFFSET(G12,0,HOME!$AC$3) -> 0 | D12: =OFFSET(M12,0,HOME!$AC$3) -> 0 | E12: =OFFSET(S12,0,HOME!$AC$3) -> 0 | F12: =OFFSET(Y12,0,HOME!$AC$3) -> 0
C13: =OFFSET(G13,0,HOME!$AC$3) -> 1336142.78 | I13: =(Hamilton_tripdata!C49+Hamilton_tripdata!C57) -> 1336142.78 | N13: =IF(D9*D7=0,"WARNING - Data for "&HOME!AB3&" is incomplete","") -> 
A14: Education
A15: car | B15: peak | C15: =OFFSET(G15,0,HOME!$AC$3) -> 257694.3 | D15: =OFFSET(M15,0,HOME!$AC$3) -> 0.5568886554 | E15: =OFFSET(S15,0,HOME!$AC$3) -> 100.3 | F15: =OFFSET(Y15,0,HOME!$AC$3) -> 340.908 | I15: =(Hamilton_tripdata!D45+Hamilton_tripdata!D44) -> 257694.3 | O15: =I15/$I$18 -> 0.5568886554 | U15: =EEM_Values!C5*Hamilton_tripdata!D29 -> 100.3 | AA15: =U15+Hamilton_tripdata!D30*EEM_Values!B4 -> 340.908
A16: bus | B16: peak | C16: =OFFSET(G16,0,HOME!$AC$3) -> 9218.16 | D16: =OFFSET(M16,0,HOME!$AC$3) -> 0.01992084702 | E16: =OFFSET(S16,0,HOME!$AC$3) -> 160 | F16: =OFFSET(Y16,0,HOME!$AC$3) -> 899.7757714 | I16: =Hamilton_tripdata!D47 -> 9218.16 | O16: =I16/$I$18 -> 0.01992084702 | U16: =Hamilton_tripdata!C16 -> 160 | AA16: =U16+5*EEM_Values!B$7+(EEM_Values!B$10+EEM_Values!C$10*Hamilton_tripdata!C$31)*EEM_Values!B$8+Hamilton_tripdata!C$29*Hamilton_tripdata!$N$21*60/30*EEM_Values!B$6 -> 899.7757714
A17: train | B17: peak | C17: =OFFSET(G17,0,HOME!$AC$3) -> 0 | D17: =OFFSET(M17,0,HOME!$AC$3) -> 0 | E17: =OFFSET(S17,0,HOME!$AC$3) -> 0 | F17: =OFFSET(Y17,0,HOME!$AC$3) -> 0
C18: =OFFSET(G18,0,HOME!$AC$3) -> 462739.36 | I18: =Hamilton_tripdata!D49 -> 462739.36
A19: Irregular user
A20: car | B20: peak | C20: =OFFSET(G20,0,HOME!$AC$3) -> 1391449.064 | D20: =OFFSET(M20,0,HOME!$AC$3) -> 0.3335335393 | E20: =OFFSET(S20,0,HOME!$AC$3) -> 190.4 | F20: =OFFSET(Y20,0,HOME!$AC$3) -> 473.856 | I20: =(Hamilton_tripdata!E44+Hamilton_tripdata!E45) -> 1391449.064 | O20: =I20/$I$26 -> 0.3335335393 | U20: =U7 -> 190.4 | AA20: =U20+Hamilton_tripdata!E30*EEM_Values!B4 -> 473.856
B21: off peak | C21: =OFFSET(G21,0,HOME!$AC$3) -> 2315897.12 | D21: =OFFSET(M21,0,HOME!$AC$3) -> 0.5551258636 | E21: =OFFSET(S21,0,HOME!$AC$3) -> 178.5 | F21: =OFFSET(Y21,0,HOME!$AC$3) -> 557.858 | I21: =(Hamilton_tripdata!D52+Hamilton_tripdata!E52+Hamilton_tripdata!D53+Hamilton_tripdata!E53) -> 2315897.12 | O21: =I21/$I$26 -> 0.5551258636 | U21: =U8 -> 178.5 | AA21: =U21+Hamilton_tripdata!E40*EEM_Values!C4 -> 557.858
A22: bus | B22: peak | C22: =OFFSET(G22,0,HOME!$AC$3) -> 7246.32 | D22: =OFFSET(M22,0,HOME!$AC$3) -> 0.001736959562 | E22: =OFFSET(S22,0,HOME!$AC$3) -> 310 | F22: =OFFSET(Y22,0,HOME!$AC$3) -> 1049.775771 | I22: =Hamilton_tripdata!E47 -> 7246.32 | O22: =I22/$I$26 -> 0.001736959562 | U22: =Hamilton_tripdata!C14 -> 310 | AA22: =U22+5*EEM_Values!B$7+(EEM_Values!B$10+EEM_Values!C$10*Hamilton_tripdata!C$31)*EEM_Values!B$8+Hamilton_tripdata!C$29*Hamilton_tripdata!$N$21*60/30*EEM_Values!B$6 -> 1049.775771
B23: off peak | C23: =OFFSET(G23,0,HOME!$AC$3) -> 17340.94 | D23: =OFFSET(M23,0,HOME!$AC$3) -> 0.004156663182 | E23: =OFFSET(S23,0,HOME!$AC$3) -> 310 | F23: =OFFSET(Y23,0,HOME!$AC$3) -> 978.4678919 | I23: =(Hamilton_tripdata!D55+Hamilton_tripdata!E55) -> 17340.94 | O23: =I23/$I$26 -> 0.004156663182 | U23: =U22 -> 310 | AA23: =U23+5*EEM_Values!C$7+(EEM_Values!B$10+EEM_Values!C$10*Hamilton_tripdata!$C$41)*EEM_Values!C$8+Hamilton_tripdata!C$39*Hamilton_tripdata!$N$21*60/30*EEM_Values!C$6 -> 978.4678919
A24: train | B24: peak | C24: =OFFSET(G24,0,HOME!$AC$3) -> 0 | D24: =OFFSET(M24,0,HOME!$AC$3) -> 0 | E24: =OFFSET(S24,0,HOME!$AC$3) -> 0 | F24: =OFFSET(Y24,0,HOME!$AC$3) -> 0
B25: off peak | C25: =OFFSET(G25,0,HOME!$AC$3) -> 0 | D25: =OFFSET(M25,0,HOME!$AC$3) -> 0 | E25: =OFFSET(S25,0,HOME!$AC$3) -> 0 | F25: =OFFSET(Y25,0,HOME!$AC$3) -> 0
C26: =OFFSET(G26,0,HOME!$AC$3) -> 4171841.508 | I26: =(Hamilton_tripdata!E49+Hamilton_tripdata!D57+Hamilton_tripdata!E57) -> 4171841.508
A28: Elasticity calculation
A29: Fare elasticities | C29: Regular traveller/Home based work trips | J29: Education trips | Q29: Infrequent user /Other trips
F30: lambda | M30: lambda | T30: lambda
A31: Assumptions | C31: overall e | D31: 0 | E31: peak | F31: =0.001 -> 0.001 | J31: overall e | K31: 0 | L31: peak | M31: =F31 -> 0.001 | Q31: overall e | R31: 0 | S31: peak | T31: =F31 -> 0.001
C32: factor | D32: =(E41-D31)/E41 -> 1 | E32: off peak | F32: =0.002 -> 0.002 | J32: factor | K32: =(M41-K31)/M41 -> 1 | Q32: factor | R32: =(U41-R31)/U41 -> 1 | S32: off peak | T32: 0.002
A34: Select the row representing the change in cost, and the column for the change in trips | I34: Select the row representing the change in cost, and the column for the change in trips | Q34: Select the row representing the change in cost, and the column for the change in trips
I35: price elasticity | Q35: price elasticity
C36: change in number of trips > | K36: change in number of trips > | S36: change in number of trips >
C37: car | E37: bus | K37: car | M37: bus | S37: car | U37: bus
A38: change in prices | C38: peak | D38: off peak | E38: peak | F38: off peak | I38: change in prices | K38: peak | L38: off peak | M38: peak | N38: off peak | Q38: change in prices | S38: peak | T38: off peak | U38: peak | V38: off peak
A39: car | B39: peak | C39: =$D$31-$F$31*(1-$D7)*$E7*$D$32 -> -0.06002682742 | D39: =-D40/10 -> 0.0273686146 | E39: =$F$31*$D7*$E7*D32 -> 0.1303731726 | F39: 0 | I39: car | J39: peak | K39: =K31-$M$31*(1-$D15)*$E15*K32 -> -0.04444406786 | M39: =$M$31*$D15*$E15*K32 -> 0.05585593214 | Q39: car | R39: peak | S39: =R31-$T$31*(1-$D$20)*$E20*R32 -> -0.1268952141 | T39: =-T40/10 -> 0.01588200667 | U39: =$T$31*$D$20*$E20*R32 -> 0.06350478588 | V39: 0
B40: off peak | C40: =-C39/10 -> 0.006002682742 | D40: =$D$31-$F$32*(1-$D$8)*E8*D32 -> -0.273686146 | E40: 0 | F40: =$F$32*$O8*$U8*D32 -> 0.083313854 | R40: off peak | S40: =-S39/10 -> 0.01268952141 | T40: =R31-$T$32*(1-$D$21)*E21*R32 -> -0.1588200667 | U40: 0 | V40: =$T$32*$D$21*$E21*R32 -> 0.1981799333
A41: bus | B41: peak | C41: =$F$31*$D9*$E9*$D$32 -> 0.002330491057 | D41: 0 | E41: =-$F$31*(1-$D9)*$E9 -> -0.2276695089 | F41: =-F42/10 -> 0.04588938458 | I41: bus | J41: peak | K41: =$M$31*$D16*$E16*K32 -> 0.003187335523 | M41: =-$M$31*(1-$D16)*$E16 -> -0.1568126645 | Q41: bus | R41: peak | S41: =$T$31*$D$22*$E22*R32 -> 0.0005384574643 | T41: 0 | U41: =-$T$31*(1-D22)*E22 -> -0.3094615425 | V41: =-V42/10 -> 0.06174228688
B42: off peak | C42: 0 | D42: =$F$32*$D10*$E10*D32 -> 0.001106154239 | E42: =-E41/10 -> 0.02276695089 | F42: =D31-$F$32*(1-$D$10)*$E10*D32 -> -0.4588938458 | R42: off peak | S42: 0 | T42: =$T$32*$D$23*$E23*R32 -> 0.002577131173 | U42: =-U41/10 -> 0.03094615425 | V42: =R31-$T$32*(1-$D$23)*$E23*R32 -> -0.6174228688
C44: Regular traveller | F44: lambda | J44: Education | M44: lambda | Q44: Infrequent user | T44: lambda
A45: Assumptions | C45: overall e | D45: 0 | E45: peak | F45: =0.001 -> 0.001 | J45: overall e | K45: 0 | L45: peak | M45: =F45 -> 0.001 | Q45: overall e | R45: 0 | S45: peak | T45: =F45 -> 0.001
C46: factor | D46: =(E52-D45)/E52 -> 1 | E46: off peak | F46: =0.002 -> 0.002 | J46: factor | K46: =(M52-K45)/M52 -> 1 | Q46: factor | R46: =(U52-R45)/U52 -> 1 | S46: off peak | T46: 0.002
A49: change in generalised cost | I49: change in generalised cost | Q49: change in generalised cost
A50: car | B50: peak | C50: =D45-$F$45*(1-D7)*$F7*D46 -> -0.190955931 | D50: =D45-SUM(D51:D53) -> 0.9578521003 | E50: =$F$45*$D7*$F7*D46 -> 0.414740069 | F50: 0 | I50: car | J50: peak | K50: =K45-$M$45*(1-$D15)*$F15*K46 -> -0.1510602023 | M50: =$M$45*D15*$F15*K46 -> 0.1898477977 | Q50: car | R50: peak | S50: =R45-$T$45*(1-$AF7)*$AA20*R46 -> -0.473856 | T50: =R45-T51-T52-T53 -> 0.4882188691 | U50: =$T$45*$D20*$F20*R46 -> 0.1580468688 | V50: 0
B51: off peak | C51: =D45-C50-C52-C53 -> 0.1811296103 | D51: =D45-$F$46*(1-$D8)*$F8*D46 -> -0.9621731614 | E51: 0 | F51: =$F$46*D8*$F8*D46 -> 0.2928988386 | J51: off peak | R51: off peak | S51: =R46-S50-S52-S53 -> 1.472032582 | T51: =R45-$T$46*(1-$D21)*$AA21*R46 -> -0.496353192 | U51: 0 | V51: =$T$46*$D21*$F21*R46 -> 0.619362808
A52: bus | B52: peak | C52: =$F$45*D9*$F9*D46 -> 0.009826320708 | D52: 0 | E52: =-$F$45*(1-D9)*$F9 -> -0.9599494507 | F52: =D45-F50-F51-F53 -> 1.499715884 | I52: bus | J52: peak | K52: =$M$45*$D16*$F16*K46 -> 0.01792429549 | M52: =-$M$45*(1-D16)*$F16 -> -0.8818514759 | Q52: bus | R52: peak | S52: =$T$45*$D22*$F22*R46 -> 0.001823418064 | T52: 0 | U52: =-$T$45*(1-$D22)*$F22 -> -1.047952353 | V52: =R45-V50-V51-V53 -> 1.329438653
B53: off peak | C53: 0 | D53: =$F$46*D10*$F10*D46 -> 0.004321061162 | E53: =D45-E50-E51-E52 -> 0.5452093817 | F53: =D45-$F$46*(1-D10)*$F10*D46 -> -1.792614723 | J53: off peak | R53: off peak | S53: 0 | T53: =$T$46*$D23*$F23*R46 -> 0.008134322923 | U53: =R46-U50-U51-U52 -> 1.889905485 | V53: =R45-$T$46*(1-$D23)*$F23*R46 -> -1.948801461
A55: ei = lambda* (1 -mode share i)* fare i
A56: eij = lambda * mode share j * fare j
A58: This sheet calculates six sets of figures for use in the output sheets. It calculates price elasticities and generalised cost elasticities. It does this for HBW travel, education travel and other travel.

Sheet Glaister Lewis
J1: OPTIMISATION | L1: (Glaister Lewis analysis) | AA1: CALCULATIONS
A2: INPUTS | J2: 1) | K2: Set the operating assumptions | O2: comment
A3: These data have been assembled here from other sheets
A4: to make the calculations easier to follow | J4: 1a | K4: Determine the amount of the patronage change absorbed by a change in occupancy | AA4: Optimisation calculation
K5: Am peak | O5: Zero means any new passengers will require extra services | AM5: drop down list
A6: Fares /charges in cents per | D6: passenger-km per period | K6: Interpeak | O6: 100% means the number of services will not change | AA6: Optimisation works by solving the simultanious equations
B7: Op cost | C7: capacity | D7: congestion | E7: environment | F7: safety | G7: access | H7: Total | AE7: except we rearrange them slightly | AL7: 4 | AM7: direct costs only
A8: peak car | B8: =L30-'Hamilton_unit costs'!B42+'Hamilton_unit costs'!B48 -> 14.52336444 | D8: ='Hamilton_unit costs'!M43 -> 7.582858024 | E8: ='Hamilton_unit costs'!B59 -> 6.024248665 | F8: ='Hamilton_unit costs'!B64 -> -2.008082888 | H8: =(B8+IF($AL$7=5,0,IF($AL$7>2,D8+E8+F8,IF($AL$7=2,D8,0)))) -> 26.12238824 | J8: 1b | K8: Determine how the services will be modified | AE8: revenue = Eij*Qj*Pj | AM8: include congestion only
A9: off peak car | B9: =L31-'Hamilton_unit costs'!C42+'Hamilton_unit costs'!C48 -> 14.58985711 | D9: ='Hamilton_unit costs'!O43 -> 6.079262453 | E9: ='Hamilton_unit costs'!C59 -> 6.778526891 | F9: ='Hamilton_unit costs'!C64 -> -1.732290206 | H9: =B9+IF($AL$7=5,0,IF($AL$7>2,D9+E9+F9,IF($AL$7=2,D9,0))) -> 25.71535624 | K9: Am peak | O9: Choose between changing frequency, route density, vehicle size or a combination | AE9: cost = Eij*Qj*MCj | AM9: congestion, environment and safety
A10: peak bus | B10: ='Hamilton_unit costs'!D50 -> 93.65405472 | C10: ='Hamilton_unit costs'!D51 -> 6.579563381 | D10: =D8*3/'Hamilton_unit costs'!D35 -> 2.954360269 | E10: ='Hamilton_unit costs'!D59 -> 4.961038961 | F10: ='Hamilton_unit costs'!D64 -> -1.584415584 | G10: =-'Hamilton_unit costs'!D73 -> -14.80442177 | H10: =((B10+IF($AL$7=5,G10,IF($AL$7=2,D10,IF($AL$7=3,D10+E10+F10,IF($AL$7=4,D10+E10+F10+G10,0)))))*(HOME!AB$25+HOME!AC$25)+C10*HOME!AD$25) -> 51.10836996 | K10: Interpeak | AM10: All (includes mohring)
A11: off-peak bus | B11: ='Hamilton_unit costs'!E50 -> 40.14853879 | C11: ='Hamilton_unit costs'!E51 -> 2.489274768 | D11: =D9*3/'Hamilton_unit costs'!E35 -> 3.144446096 | E11: ='Hamilton_unit costs'!E59 -> 4.603448276 | F11: ='Hamilton_unit costs'!E64 -> -1.017241379 | G11: =-'Hamilton_unit costs'!E73 -> -16.39124839 | H11: =((B11+IF($AL$7=5,G11,IF($AL$7=2,D11,IF($AL$7=3,D11+E11+F11,IF($AL$7=4,D11+E11+F11+G11,0)))))*(HOME!AB$26+HOME!AC$26)+C11*HOME!AD$26) -> 12.19517736 | AA11: Home based work | AF11: other trips | AM11: only mohring
J12: 1c | K12: Determine which impacts are included in the social marginal cost | AB12: revenue | AC12: cost | AD12: Pi | AF12: revenue | AG12: cost | AH12: target price
A13: Trips and elasticities | O13: Choose what impacts are important to you | AA13: peak bus | AB13: =SUMPRODUCT(E16:E19,M30:M33,B16:B19) -> -119435.6199 | AC13: =SUMPRODUCT(E16:E19,B16:B19,H8:H11) -> -100036.7815 | AD13: =(AC13-AB13+M32*B18*E18)/(B18*E18) -> 44.92787263 | AF13: =SUMPRODUCT(E29:E32,M38:M41,B29:B32) -> -88865.29117 | AG13: =SUMPRODUCT(E29:E32,B29:B32,H8:H11) -> -81979.50153 | AH13: =(AG13-AF13+M40*B31*E31)/(B31*E31) -> 52.53606615
A14: Home based work | AA14: op bus | AB14: =SUMPRODUCT(F16:F19,M30:M33,B16:B19) -> -331.3608908 | AC14: =SUMPRODUCT(F16:F19,B16:B19,H8:H11) -> 6642.059758 | AD14: =(AC14-AB14+M33*B19*F19)/(B19*F19) -> 10.17999535 | AF14: =SUMPRODUCT(F29:F32,M38:M41,B29:B32) -> -117001.8574 | AG14: =SUMPRODUCT(F29:F32,B29:B32,H8:H11) -> 34369.59273 | AH14: =(AG14-AF14+M41*B32*F32)/(B32*F32) -> 7.43107857
B15: pax-km | C15: Elasticity | J15: 2) | K15: Specify any constraints
A16: peak car | B16: =elasticities!C7 -> 914901.12 | C16: =elasticities!C$39 -> -0.06002682742 | D16: 0.05769633636 | E16: =elasticities!C$41 -> 0.002330491057 | F16: =elasticities!C$42 -> 0 | K16: Subsidy <= | M16: 12 | N16: million | AA16: School bus | AB16: =M35*B22*E22+E24*M36*B24 -> -57442.38859 | AC16: =E22*B22*H8+E24*B24*H10 -> -52422.5495 | AD16: =(AC16-AB16+M36*B24*E24)/(B24*E24) -> 45.92495747 | AF16: Objective | AG16: =(AD13-M32)^2+(AD14-M33)^2+(AD16-M36)^2+(AH13-M40)^2+(AH14-M41)^2 -> 283.3502093
A17: off peak car | B17: =elasticities!C8 -> 311818.5 | C17: =elasticities!D$39 -> 0.0273686146 | D17: 0 | E17: =elasticities!D$41 -> 0 | F17: =elasticities!D$42 -> 0.001106154239 | K17: max child fare <= | M17: 1 | N17: adult | O17: 0.5 would limit the child to no more than half the adult fare | S17: =M17*M40 -> 55.60671077
A18: peak bus | B18: =elasticities!C9 -> 13538.56 | C18: =elasticities!E$39 -> 0.1303731726 | D18: =elasticities!E$40 -> 0 | E18: =elasticities!E$41 -> -0.2276695089 | F18: =elasticities!E$42 -> 0.02276695089 | K18: off peak fare >= | M18: 0 | N18: peak | O18: 1.0 would prevent off-peak discounting | R18: =M18*M32 -> 0 | S18: =M18*M40 -> 0 | AA18: Subsidy calculation
A19: off-peak bus | B19: =elasticities!C10 -> 3213 | C19: =elasticities!F$39 -> 0 | D19: =elasticities!F$40 -> 0.083313854 | E19: =elasticities!F$41 -> 0.04588938458 | F19: =elasticities!F$42 -> -0.4588938458 | K19: fare recovery >= | M19: 0
AA20: We do this calculation to see the effect on the subsidy
A21: Education | B21: pax-km | C21: Elasticity | J21: 3) | K21: Run the optimisation
A22: peak car | B22: =elasticities!C15 -> 257694.3 | C22: =elasticities!K$39 -> -0.04444406786 | E22: =elasticities!K$41 -> 0.003187335523 | AB22: pax-km | AC22: Cost | AD22: Revenue
A23: off peak car | AB23: (per period) | AC23: (c per period) | AD23: (c per period)
A24: peak bus | B24: =elasticities!C16 -> 9218.16 | C24: =elasticities!M$39 -> 0.05585593214 | E24: =elasticities!M$41 -> -0.1568126645 | AA24: =K30 -> peak car | AB24: =B16*(N30*C$16+N31*D$16+N32*E$16+N33*F$16) -> 2122.382192 | AC24: =B8*AB24 -> 30824.13006 | AD24: =(B16+AB24)*M30-B16*L30 -> 36080.49727
A25: off-peak bus | AA25: =K31 -> off peak car | AB25: =B17*(N30*C$17+N31*D$17+N32*E$17+N33*F$17) -> -157.1025739 | AC25: =B9*AB25 -> -2292.104104 | AD25: =(B17+AB25)*M31-B17*L31 -> -2670.743757
AA26: =K32 -> peak bus | AB26: =B18*(N30*C$18+N31*D$18+N32*E$18+N33*F$18) -> -3208.561658 | AC26: =AB26*(B$10*HOME!AA$25+C$10*HOME!AD$25) -> -192316.6778 | AD26: =(B18+AB26)*M32-B18*L32 -> 181587.6142
J27: 4) | K27: View results | Q27: current | R27: revised | AA27: =K33 -> off-peak bus | AB27: =B19*(N30*C$19+N31*D$19+N32*E$19+N33*F$19) -> 818.3318179 | AC27: =AB27*(B$10*HOME!AA$25+C$10*HOME!AD$25) -> 49049.65943 | AD27: =(B19+AB27)*M33-B19*L33 -> -27869.54009
A28: Other | B28: pax-km | C28: Elasticity | L28: current fare | M28: revised fare | N28: change | P28: pt revenue | Q28: =Hamilton_tripdata!$C$7 -> 5.197 | R28: =Q28+AD42 -> 5.114706902
A29: peak car | B29: =elasticities!C20 -> 1391449.064 | C29: =elasticities!S$39 -> -0.1268952141 | D29: =elasticities!S$40 -> 0.01268952141 | E29: =elasticities!S$41 -> 0.0005384574643 | F29: =elasticities!S$42 -> 0 | J29: home based work trips | M29: (cents/km) | P29: gross cost | Q29: =Hamilton_tripdata!$C$10 -> 17.31384294 | R29: =Q29+AC42 -> 17.11471317 | AA29: =K35 -> peak car | AB29: =B22*(N35*C22+N36*E22) -> 375.549792 | AC29: =B8*AB29 -> 5454.246493 | AD29: =(B22+AB29)*M35-B22*L35 -> 6384.346463
A30: off peak car | B30: =elasticities!C21 -> 2315897.12 | C30: =elasticities!T$39 -> 0.01588200667 | D30: =elasticities!T$40 -> -0.1588200667 | E30: =elasticities!T$41 -> 0 | F30: =elasticities!T$42 -> 0.002577131173 | K30: peak car | L30: =EEM_Values!B5 -> 17 | M30: 17 | N30: =(M30-L30)/L30 -> 0 | P30: subsidy | Q30: =Q29-Q28 -> 12.11684294 | R30: =R29-R28 -> 12.00000627 | S30: =IF(ABS(R30-M16)<0.1,"Active constraint","") -> Active constraint | AA30: =K36 -> peak bus | AB30: =B24*(N35*C24+N36*E24) -> -660.9373677 | AC30: =AB30*(B$10*HOME!AA$25+C$10*HOME!AD$25) -> -39615.65722 | AD30: =(B24+AB30)*M36-B24*L36 -> 110226.5577
A31: peak bus | B31: =elasticities!C22 -> 7246.32 | C31: =elasticities!U$39 -> 0.06350478588 | D31: =elasticities!U$40 -> 0 | E31: =elasticities!U$41 -> -0.3094615425 | F31: =elasticities!U$42 -> 0.03094615425 | K31: off peak car | L31: =EEM_Values!C5 -> 17 | M31: 17 | N31: =(M31-L31)/L31 -> 0 | P31: fare recovery | Q31: =Q28/Q29 -> 0.3001644417 | R31: =R28/R29 -> 0.2988485317 | S31: =IF(ABS(R31-M19)<0.01,"Active constraint","") -> 
A32: off-peak bus | B32: =elasticities!C23 -> 17340.94 | C32: =elasticities!V$39 -> 0 | D32: =elasticities!V$40 -> 0.1981799333 | E32: =elasticities!V$41 -> 0.06174228688 | F32: =elasticities!V$42 -> -0.6174228688 | K32: peak bus | L32: =Hamilton_tripdata!C15/Hamilton_tripdata!C29/Hamilton_tripdata!N21 -> 25.66964286 | M32: 51.22146168 | N32: =(M32-L32)/L32 -> 0.9954099855 | P32: bus-km | Q32: =Hamilton_tripdata!C8 -> 4.63 | R32: =Q32+Q32*AB42/Q33*(HOME!AB25+HOME!AC25) -> 4.865410699 | AA32: =K38 -> peak car | AB32: =B29*(N38*C$29+N39*D$29+N40*E$29+N41*F$29) -> 175.4038409 | AC32: =B8*AB32 -> 2547.453905 | AD32: =(B29+AB32)*M38-B29*L38 -> 2981.865295
K33: off-peak bus | L33: =Hamilton_tripdata!C18/Hamilton_tripdata!C39/Hamilton_tripdata!N21 -> 27.38095238 | M33: 14.90957892 | N33: =(M33-L33)/L33 -> -0.455476248 | P33: pax-km | Q33: =Hamilton_tripdata!C6 -> 29.502 | R33: =Q33+AB42 -> 32.00203111 | AA33: =K39 -> off peak car | AB33: =B30*(N38*C$30+N39*D$30+N40*E$30+N41*F$30) -> -2712.687207 | AC33: =B9*AB33 -> -39577.71872 | AD33: =(B30+AB33)*M39-B30*L39 -> -46115.68252
J34: education | P34: occupancy | Q34: =Hamilton_tripdata!$I$6 -> 6.371922246 | R34: =R33/R32 -> 6.577457299 | S34: =IF(R34=M20,"Active constraint","") ->  | AA34: =K40 -> peak bus | AB34: =B31*(N38*C$31+N39*D$31+N40*E$31+N41*F$31) -> -626.9042454 | AC34: =AB34*(B$10*HOME!AA$25+C$10*HOME!AD$25) -> -37575.75968 | AD34: =(B31+AB34)*M40-B31*L40 -> 41578.23966
K35: peak car | L35: =L30 -> 17 | M35: 17 | N35: =(M35-L35)/L35 -> 0 | AA35: =K41 -> off peak bus | AB35: =B32*(N38*C$32+N39*D$32+N40*E$32+N41*F$32) -> 5116.959116 | AC35: =AB35*($B$11*HOME!AA$26+HOME!AD$26*C$11) -> 94501.67851 | AD35: =(B32+AB35)*M41-B32*L41 -> -201278.2597
K36: peak bus | L36: =Hamilton_tripdata!C16/Hamilton_tripdata!D29/Hamilton_tripdata!N21 -> 33.89830508 | M36: 49.3976347 | N36: =(M36-L36)/L36 -> 0.4572302238 | P36: Congestion | Q36: =((B16+B22+B29)*D8*AB43+(B17+B30)*D9*AB44)/10^8 -> 225.0105097 | R36: =Q36+((AB24+AB29+AB32)*D8*AB43+(AB25+AB33)*D9*AB44)/10^8 -> 224.9722977
J37: other | P37: PT share | Q37: =(B18+B24+B31)/(B16+B22+B29) -> 0.01170145065 | R37: =(B18+B24+B31+AB26+AB30+AB34)/(B16+B22+B29+AB24+AB29+AB32) -> 0.009937452624 | AA37: =AA32 -> peak car | AB37: =AB24+AB29+AB32 -> 2673.335825 | AC37: =AC24+AC29+AC32 -> 38825.83045 | AD37: =AD24+AD29+AD32 -> 45446.70903
K38: peak car | L38: =L30 -> 17 | M38: 17 | N38: =(M38-L38)/L38 -> 0 | AA38: =AA33 -> off peak car | AB38: =AB25+AB33 -> -2869.789781 | AC38: =AC25+AC33 -> -41869.82283 | AD38: =AD25+AD33 -> -48786.42628
K39: off peak car | L39: =L31 -> 17 | M39: 17 | N39: =(M39-L39)/L39 -> 0 | AA39: =AA34 -> peak bus | AB39: =AB26+AB30+AB34 -> -4496.403271 | AC39: -269508.0947 | AD39: 333392.4116
K40: peak bus | L40: =Hamilton_tripdata!C14/Hamilton_tripdata!E30/Hamilton_tripdata!N21 -> 45.05813953 | M40: 55.60671077 | N40: =(M40-L40)/L40 -> 0.2341102261 | AA40: =AA35 -> off peak bus | AB40: 5935.290934 | AC40: 143551.3379 | AD40: -229147.7998
K41: off peak bus | L41: =Hamilton_tripdata!C17/Hamilton_tripdata!E40/Hamilton_tripdata!N21 -> 39.54081633 | M41: 21.56909964 | N41: =(M41-L41)/L41 -> -0.4545105123
AA42: annual bus | AB42: =(AB39*AB43+AB40*AB44)/10^6 -> 2.500031111 | AC42: =(AC39*AB43+AC40*AB44)/10^8 -> -0.1991297701 | AD42: =(AD39*AB43+AD40*AB44)/10^8*Hamilton_tripdata!I7 -> -0.0822930982
J43: 5) | K43: Go back to 1) to review assumptions | AA43: peak factor | AB43: =Hamilton_tripdata!N9 -> 500 | AE43: these will depend on the region
AA44: off peak factor | AB44: =Hamilton_tripdata!O9 -> 800
J47: 6) | K47: View/print assumptions and results | O47: or 7) | P47: View incremental analysis
AA64: (MC - MR + Pi *Ei *Qi) / (Ei * Qi)
M340: 0

Sheet Parry Small
A1: INPUTS | K1: INCREMENTAL ANALYSIS | M1: (Effect of 1c reduction in price)) | AB1: CALCULATIONS
A2: These data have been assembled here from other
A3: sheets to make the calculations easier to follow | K3: 1) | L3: Set the operating assumptions | P3: comment | AB3: Benefit calculation
C5: inc | D5: op cost | E5: fare | F5: freq cost | G5: externality | K5: 1a | L5: Determine the amount of the patronage change absorbed by a change in occupancy | AB5: The marginal benefit from a change in price is given by
C6: (all cents per kilometre) | L6: Am peak | P6: Zero means any new passengers will require extra services
A7: Home based work | L7: Interpeak | P7: 100% means the number of services will not change
A8: car | B8: peak | C8: 0 | D8: ='Glaister Lewis'!B8 -> 14.52336444 | E8: ='Glaister Lewis'!L30+C8 -> 17 | G8: ='Hamilton_unit costs'!B66 -> 9.091834924 | AB8: Pj -MCj is the difference between the charge and the maginal social cost
B9: off peak | C9: 0 | D9: ='Glaister Lewis'!B9 -> 14.58985711 | E9: ='Glaister Lewis'!L31+C9 -> 17 | G9: ='Hamilton_unit costs'!C66 -> 9.624952688 | K9: 1b | L9: Determine how the services will be modified | AB9: (shown as "cost/trip-km on the main table with MCj split by main impact type)
A10: bus | B10: peak | C10: 0 | D10: ='Hamilton_unit costs'!D50*D28 -> 59.93859502 | E10: ='Glaister Lewis'!L32+C10 -> 25.66964286 | F10: =-'Hamilton_unit costs'!D71*F28 -> -8.882653061 | G10: ='Hamilton_unit costs'!D66*F28 -> 3.798590187 | L10: Am peak | P10: Chose between changing frequency, route density, vehicle size or a combination
B11: off peak | C11: 0 | D11: ='Hamilton_unit costs'!E50*D29 -> 18.46832784 | E11: ='Glaister Lewis'!L33+C11 -> 27.38095238 | F11: =-'Hamilton_unit costs'!E71*F29 -> -6.556499356 | G11: ='Hamilton_unit costs'!E66*F29 -> 2.692261197 | L11: Interpeak | AB11: The tables below calculate the Eij * Qj /Pi (ie the elasticity wrt mode j * base number of mode j trips/price of i)
A13: Education | K13: 2) | L13: View the effect of a one cent reduction in price | P13: (scroll down) | R13: ALL VALUES IN CENTS
A14: car | B14: peak | C14: 0 | D14: ='Glaister Lewis'!B8 -> 14.52336444 | E14: ='Glaister Lewis'!L35+C14 -> 17 | G14: ='Hamilton_unit costs'!B67 -> 9.091834924
A15: bus | B15: peak | C15: 0 | D15: ='Glaister Lewis'!B10*D28 -> 59.93859502 | E15: ='Glaister Lewis'!L36+C15 -> 33.89830508 | F15: =F10 -> -8.882653061 | G15: ='Hamilton_unit costs'!D67*F28 -> 3.798590187 | M15: Period > | N15: Peak | U15: Interpeak | X15: Total | Y15: Revenue | AB15: Home based work
M16: Mode > | N16: car | P16: bus | S16: car | U16: bus | X16: benefit | Y16: loss | AD16: EijQj/Pi >
A17: Other | M17: Impact type> | N17: resource | O17: externality | P17: resource | Q17: access | R17: externality | S17: resource | T17: externality | U17: resource | V17: access | W17: externality | X17: (cents/period) | AE17: car | AG17: bus
A18: car | B18: peak | C18: 0 | D18: ='Glaister Lewis'!B8 -> 14.52336444 | E18: ='Glaister Lewis'!L38+C18 -> 17 | G18: ='Hamilton_unit costs'!B69 -> 9.091834924 | K18: Mode/period | AB18: fare changed | | AE18: peak | AF18: off peak | AG18: peak | AH18: off peak
B19: off peak | C19: 0 | D19: ='Glaister Lewis'!B9 -> 14.58985711 | E19: ='Glaister Lewis'!L39+C19 -> 17 | G19: ='Hamilton_unit costs'!C69 -> 9.624952688 | K19: Home based work trips | M19: cents/trip-km> | N19: =($D$8-$E$8) -> -2.476635562 | O19: =$G$8 -> 9.091834924 | P19: =($D$10-$E$10) -> 34.26895217 | Q19: =F10 -> -8.882653061 | R19: =G10 -> 3.798590187 | S19: =($D$9-$E$9) -> -2.410142895 | T19: =$G$9 -> 9.624952688 | U19: =($D$11-$E$11) -> -8.912624538 | V19: =F11 -> -6.556499356 | W19: =G11 -> 2.692261197 | AD19: base | AE19: =elasticities!C7 -> 914901.12 | AF19: =elasticities!C8 -> 311818.5 | AG19: =elasticities!C9 -> 13538.56 | AH19: =elasticities!C10 -> 3213
A20: bus | B20: peak | C20: 0 | D20: ='Glaister Lewis'!B10*D28 -> 59.93859502 | E20: ='Glaister Lewis'!L40+C20 -> 45.05813953 | F20: =F10 -> -8.882653061 | G20: ='Hamilton_unit costs'!D69*F28 -> 3.798590187 | K20: car | L20: peak | N20: =N$19*$AE20 -> 8000.787447 | O20: =$O$19*$AE20 -> -29371.23243 | P20: =P$19*$AG20 -> 3558.054631 | Q20: =Q$19*$AG20 -> -922.2623646 | R20: 394.3975684 | S20: =S$19*$AF20 -> -1209.897454 | T20: 4831.749095 | U20: =U$19*$AH20 -> 0 | V20: 0 | W20: 0 | X20: =SUM(N20:W20) -> -14718.4035 | Y20: =AE19 -> 914901.12 | AB20: car | AC20: peak | AD20: =E8 -> 17 | AE20: =elasticities!C39*AE$19/$AD20 -> -3230.506567 | AF20: =elasticities!D39*AF$19/$AD20 -> 502.0023736 | AG20: =elasticities!E39*AG$19/$AD20 -> 103.8273541 | AH20: =elasticities!F39*AH$19/$AD20 -> 0
B21: off peak | C21: 0 | D21: ='Glaister Lewis'!B11*D29 -> 18.46832784 | E21: ='Glaister Lewis'!L41+C21 -> 39.54081633 | F21: =F11 -> -6.556499356 | G21: ='Hamilton_unit costs'!E69*F29 -> 2.692261197 | L21: off peak | N21: =N$19*$AE21 -> -800.0787447 | O21: =$O$19*$AE21 -> 2937.123243 | P21: 0 | Q21: 0 | R21: 0 | S21: 12098.97454 | T21: -48317.49095 | U21: -140.3410238 | V21: -103.2407265 | W21: 42.39320204 | X21: =SUM(N21:W21) -> -34282.66046 | Y21: =AF19 -> 311818.5 | AC21: off peak | AD21: =E9 -> 17 | AE21: =elasticities!C40*AE$19/$AD21 -> 323.0506567 | AF21: =elasticities!D40*AF$19/$AD21 -> -5020.023736 | AG21: =elasticities!E40*AG$19/$AD21 -> 0 | AH21: =elasticities!F40*AH$19/$AD21 -> 15.74631841
K22: bus | L22: peak | N22: =N$19*$AE22 -> -205.7140139 | O22: =$O$19*$AE22 -> 755.1849311 | P22: -4114.891077 | Q22: 1066.596657 | R22: -456.1208873 | S22: 0 | T22: 0 | U22: -51.19278349 | V22: -37.65955254 | W22: 15.463946 | X22: =SUM(N22:W22) -> -3028.33278 | Y22: =AG19 -> 13538.56 | AB22: bus | AC22: peak | AD22: =E10 -> 25.66964286 | AE22: =elasticities!C41*AE$19/$AD22 -> 83.06188326 | AF22: =elasticities!D41*AF$19/$AD22 -> 0 | AG22: =elasticities!E41*AG$19/$AD22 -> -120.0763612 | AH22: =elasticities!F41*AH$19/$AD22 -> 5.743850566
A23: Note the frequency cost and externality cost depend on the assumptions | L23: off peak | N23: =N$19*$AE23 -> 0 | O23: =$O$19*$AE23 -> 0 | P23: 385.7710385 | Q23: -99.99343661 | R23: 42.76133318 | S23: -30.36070194 | T23: 121.2460557 | U23: 479.9323452 | V23: 353.058305 | W23: -144.9744938 | X23: =SUM(N23:W23) -> 1107.440445 | Y23: =AH19 -> 3213 | AC23: off peak | AD23: =E11 -> 27.38095238 | AE23: =elasticities!C42*AE$19/$AD23 -> 0 | AF23: =elasticities!D42*AF$19/$AD23 -> 12.59705473 | AG23: =elasticities!E42*AG$19/$AD23 -> 11.25715886 | AH23: =elasticities!F42*AH$19/$AD23 -> -53.84859905
A24: The unit costs are multiplied by the following factors
A25: (you can see the effect by changing the assumptions in steps 1a and 1b) | K25: Education | M25: cents/trip-km> | N25: =($D$14-$E$14) -> -2.476635562 | O25: =$G$14 -> 9.091834924 | P25: =($D$15-$E$15) -> 26.04028994 | Q25: =F15 -> -8.882653061 | R25: =G15 -> 3.798590187 | AB25: Education | AD25: EijQj/Pi >
K26: car | L26: peak | N26: =N$25*$AE30 -> 1668.521464 | O26: =O$25*$AE30 -> -6125.213554 | P26: =P$25*$AG30 -> 788.6974557 | Q26: =Q$25*$AG30 -> -269.0340962 | R26: =R$25*$AG30 -> 115.0501175 | X26: =SUM(N26:W26) -> -3821.978614 | Y26: =AE29 -> 257694.3
D27: cost factor | F27: access factor | K27: bus | L27: peak | N27: =N$25*$AE32 -> -60.0090451 | O27: =O$25*$AE32 -> 220.2957675 | P27: =P$25*$AG32 -> -1110.435168 | Q27: =Q$25*$AG32 -> 378.782662 | R27: =R$25*$AG32 -> -161.9831477 | X27: =SUM(N27:W27) -> -733.3489311 | Y27: =AG29 -> 9218.16 | AE27: car | AG27: bus
C28: peak | D28: =HOME!AA25 -> 0.64 | F28: =HOME!AB25+HOME!AC25 -> 0.6 | AB28: fare changed | | AE28: peak | AG28: peak
C29: interpeak | D29: =HOME!AA26 -> 0.46 | F29: =HOME!AB26+HOME!AC26 -> 0.4 | K29: Other | M29: cents/trip-km> | N29: =($D$18-$E$18) -> -2.476635562 | O29: =$G$18 -> 9.091834924 | P29: =($D$20-$E$20) -> 14.88045549 | Q29: =F20 -> -8.882653061 | R29: =G20 -> 3.798590187 | S29: =($D$19-$E$19) -> -2.410142895 | T29: =$G$19 -> 9.624952688 | U29: =($D$21-$E$21) -> -21.07248848 | V29: =F21 -> -6.556499356 | W29: =G21 -> 2.692261197 | AD29: base | AE29: =elasticities!C15 -> 257694.3 | AG29: =elasticities!C16 -> 9218.16
K30: car | L30: peak | N30: =N$29*AE39 -> 25723.24411 | O30: =O$29*AE39 -> -94431.12773 | P30: =P$29*AG39 -> 402.8016756 | Q30: =Q$29*AG39 -> -240.4461033 | R30: =R$29*AG39 -> 102.8247081 | S30: =S$29*AF39 -> -5214.570069 | T30: =T$29*AF39 -> 20824.48734 | U30: =U$29*AH39 -> 0 | V30: =V$29*AH39 -> 0 | W30: =W$29*AH39 -> 0 | X30: =SUM(N30:W30) -> -52832.78607 | Y30: =AE38 -> 1391449.064 | AB30: car | AC30: peak | AD30: =E14 -> 17 | AE30: =elasticities!K39*AE$29/$AD30 -> -673.7048798 | AG30: =elasticities!M39*AG$29/$AD30 -> 30.28758349
L31: off peak | N31: =N$29*AE40 -> -2572.324411 | O31: =O$29*AE40 -> 9443.112773 | P31: =P$29*AG40 -> 0 | Q31: =Q$29*AG40 -> 0 | R31: =R$29*AG40 -> 0 | S31: =S$29*AF40 -> 52145.70069 | T31: =T$29*AF40 -> -208244.8734 | U31: =U$29*AH40 -> -4259.898166 | V31: =V$29*AH40 -> -1325.425785 | W31: =W$29*AH40 -> 544.2526897 | X31: =SUM(N31:W31) -> -154269.4556 | Y31: =AF38 -> 2315897.12
K32: bus | L32: peak | N32: =N$29*AE41 -> -41.18201227 | O32: =O$29*AE41 -> 151.1809259 | P32: =P$29*AG41 -> -740.571789 | Q32: =Q$29*AG41 -> 442.0726418 | R32: =R$29*AG41 -> -189.0485633 | S32: =S$29*AF41 -> 0 | T32: =T$29*AF41 -> 0 | U32: =U$29*AH41 -> -500.7234334 | V32: =V$29*AH41 -> -155.7952148 | W32: =W$29*AH41 -> 63.97337796 | X32: =SUM(N32:W32) -> -970.0940671 | Y32: =AG38 -> 7246.32 | AB32: bus | AC32: peak | AD32: =E15 -> 33.89830508 | AE32: =elasticities!K41*AE$29/$AD32 -> 24.2300668 | AG32: =elasticities!M41*AG$29/$AD32 -> -42.64296482
L33: off peak | N33: =N$29*AE42 -> 0 | O33: =O$29*AE42 -> 0 | P33: =P$29*AG42 -> 84.39073874 | Q33: =Q$29*AG42 -> -50.37571964 | R33: =R$29*AG42 -> 21.54274325 | S33: =S$29*AF42 -> -363.7918354 | T33: =T$29*AF42 -> 1452.809795 | U33: =U$29*AH42 -> 5705.918195 | V33: =V$29*AH42 -> 1775.340819 | W33: =W$29*AH42 -> -728.9989582 | X33: =SUM(N33:W33) -> 7896.835778 | Y33: =AH38 -> 17340.94
AB34: Other
AE36: car | AG36: bus
AB37: fare changed | | AE37: peak | AF37: off peak | AG37: peak | AH37: off peak
AB38: base | AC38: patronage | AE38: =elasticities!C20 -> 1391449.064 | AF38: =elasticities!C21 -> 2315897.12 | AG38: =elasticities!C22 -> 7246.32 | AH38: =elasticities!C23 -> 17340.94
AB39: car | AC39: peak | AD39: =E18 -> 17 | AE39: =elasticities!S39*AE$38/$AD39 -> -10386.36629 | AF39: =elasticities!T39*AF$38/$AD39 -> 2163.593736 | AG39: =elasticities!U39*AG$38/$AD39 -> 27.06917647 | AH39: =elasticities!V39*AH$38/$AD39 -> 0
AC40: off peak | AD40: =E19 -> 17 | AE40: =elasticities!S40*AE$38/$AD40 -> 1038.636629 | AF40: =elasticities!T40*AF$38/$AD40 -> -21635.93736 | AG40: =elasticities!U40*AG$38/$AD40 -> 0 | AH40: =elasticities!V40*AH$38/$AD40 -> 202.1544902
AB41: bus | AC41: peak | AD41: =E20 -> 45.05813953 | AE41: =elasticities!S41*AE$38/$AD41 -> 16.6282084 | AF41: =elasticities!T41*AF$38/$AD41 -> 0 | AG41: =elasticities!U41*AG$38/$AD41 -> -49.76808603 | AH41: =elasticities!V41*AH$38/$AD41 -> 23.76195075
AC42: off peak | AD42: =E21 -> 39.54081633 | AE42: =elasticities!S42*AE$38/$AD42 -> 0 | AF42: =elasticities!T42*AF$38/$AD42 -> 150.9420193 | AG42: =elasticities!U42*AG$38/$AD42 -> 5.671247013 | AH42: =elasticities!V42*AH$38/$AD42 -> -270.7757178

Sheet Report
A1: SUMMARY OF INPUTS AND RESULTS
A2: Assumptions | F2: Titles for graphs | L2: REPORT
F3: Title | G3: interpretation
A4: Operating assumptions: | F4: car direct | G4: direct benefit of change in car travel | L4: This speadsheet can be used to print the results from an analysis
A5: Percent of increase absorbed by increased occupancy | F5: car ext | G5: congestion safety and env. | L5: The first page shows the assumptions and constraints
B6: Peak | C6: =HOME!Z18 -> 0.4 | F6: bus direct | G6: direct benefit of change in bus travel
B7: Interpeak | C7: =HOME!AA18 -> 0.6 | F7: bus access | G7: benefit from extra services | L7: Undertake the analysis using the optimise (Glaister lewis) or Increment (Parry Small) sheet
F8: bus ext | G8: congestion safety and env.
A9: Operating change to accommodate increased patronage | F9: road direct | G9: ) | L9: Then view /print the results using this sheet
B10: Peak | C10: =OFFSET(HOME!AD10,HOME!Z11,0) -> frequency changes | F10: car ext | G10: ) | H10: ditto interpeak
B11: interpeak | C11: =OFFSET(HOME!AD10,HOME!AA11,0) -> frequency changes | F11: bus direct | G11: ) | L11: Be sure to run macro [calculate optimum fares]
F12: bus access | G12: ) | L12: before printing
A13: Optimisation assumption | F13: bus ext | G13: )
A14: Impacts considered in optimisation
B16: =OFFSET('Glaister Lewis'!AM6,'Glaister Lewis'!AL7,0) -> All (includes mohring)
A18: Assumed constraints (Glaister Lewis analysis only)
A19: Maximum subsidy | D19: ='Glaister Lewis'!M16 -> 12 | E19: ='Glaister Lewis'!N16 -> million
A20: Child as % of adult | D20: ='Glaister Lewis'!M17 -> 1 | E20: (maximum)
A21: ratio off peak/peak fare | D21: 0 | E21: (minimum)
A22: target revenue recovery | D22: ='Glaister Lewis'!M19 -> 0
A24: Results
A27: Optimum fare
A28: ='Glaister Lewis'!M29 -> (cents/km)
C29: ='Glaister Lewis'!L28 -> current fare | D29: ='Glaister Lewis'!M28 -> revised fare | E29: ='Glaister Lewis'!N28 -> change
A30: Multi-ride tickets
B31: ='Glaister Lewis'!K32 -> peak bus | C31: ='Glaister Lewis'!L32 -> 25.66964286 | D31: ='Glaister Lewis'!M32 -> 51.22146168 | E31: ='Glaister Lewis'!N32 -> 0.9954099855
B32: ='Glaister Lewis'!K33 -> off-peak bus | C32: ='Glaister Lewis'!L33 -> 27.38095238 | D32: ='Glaister Lewis'!M33 -> 14.90957892 | E32: ='Glaister Lewis'!N33 -> -0.455476248
A33: School services
B34: ='Glaister Lewis'!K36 -> peak bus | C34: ='Glaister Lewis'!L36 -> 33.89830508 | D34: ='Glaister Lewis'!M36 -> 49.3976347 | E34: ='Glaister Lewis'!N36 -> 0.4572302238
A35: Occasional tickets
B36: ='Glaister Lewis'!K40 -> peak bus | C36: ='Glaister Lewis'!L40 -> 45.05813953 | D36: ='Glaister Lewis'!M40 -> 55.60671077 | E36: ='Glaister Lewis'!N40 -> 0.2341102261
B37: ='Glaister Lewis'!K41 -> off peak bus | C37: ='Glaister Lewis'!L41 -> 39.54081633 | D37: ='Glaister Lewis'!M41 -> 21.56909964 | E37: ='Glaister Lewis'!N41 -> -0.4545105123
A39: Outcomes
B41: ='Glaister Lewis'!P28 -> pt revenue | C41: ='Glaister Lewis'!R28 -> 5.114706902 | D41: million
B42: ='Glaister Lewis'!P29 -> gross cost | C42: ='Glaister Lewis'!R29 -> 17.11471317 | D42: million
B43: ='Glaister Lewis'!P31 -> fare recovery | C43: ='Glaister Lewis'!R31 -> 0.2988485317
B44: occupancy | C44: ='Glaister Lewis'!R34 -> 6.577457299 | D44: peak
B45: ='Glaister Lewis'!P37 -> PT share | C45: ='Glaister Lewis'!R37 -> 0.009937452624 | D45: peak
A52: Incremental analysis
A53: A one cent reduction in fare
A54: (graph scale dollars per year)
A56: multiride fares
A57: am peak | C57: $ per year
A58: Revenue loss | C58: =Report!C106 -> 67692.8
A59: Net Benefit | C59: =Report!D106 -> -15141.6639
A61: most benefit is from | C61: =Report!Q106 -> bus access
A63: multiride fares
A64: interpeak | C64: $ per year
A65: Revenue loss | C65: =Report!C107 -> 25704
A66: Net Benefit | C66: =Report!D107 -> 8859.523563
A68: most benefit is from | C68: =Report!Q107 -> bus resource
A73: school fares
A74: peak | C74: $ per year
A75: Revenue loss | C75: =Report!C108 -> 46090.8
A76: Net Benefit | C76: =Report!D108 -> -3666.744655
A78: most benefit is from | C78: =Report!Q108 -> bus access
A83: occasionalfares
A84: peak | C84: $ per year
A85: Revenue loss | C85: =Report!C109 -> 36231.6
A86: Net Benefit | C86: =Report!D109 -> -4850.470335
A88: most benefit is from | C88: =Report!Q109 -> bus access
A92: occasionalfares
A93: interpeak | C93: $ per year
A94: Revenue loss | C94: =Report!C110 -> 138727.52
A95: Net Benefit | C95: =Report!D110 -> 63174.68622
A98: most benefit is from | C98: =Report!Q110 -> bus resource
C103: CALCULATION
C106: ='Parry Small'!Y22/100*Hamilton_tripdata!$N9 -> 67692.8 | D106: ='Parry Small'!X22/100*Hamilton_tripdata!$N9 -> -15141.6639 | E106: ='Parry Small'!N22/100*Hamilton_tripdata!$N9 -> -1028.57007 | F106: ='Parry Small'!O22/100*Hamilton_tripdata!$N9 -> 3775.924655 | G106: ='Parry Small'!P22/100*Hamilton_tripdata!$N9 -> -20574.45539 | H106: ='Parry Small'!Q22/100*Hamilton_tripdata!$N9 -> 5332.983286 | I106: ='Parry Small'!R22/100*Hamilton_tripdata!$N9 -> -2280.604437 | J106: ='Parry Small'!S22/100*Hamilton_tripdata!$N9 -> 0 | K106: ='Parry Small'!T22/100*Hamilton_tripdata!$N9 -> 0 | L106: ='Parry Small'!U22/100*Hamilton_tripdata!$N9 -> -255.9639175 | M106: ='Parry Small'!V22/100*Hamilton_tripdata!$N9 -> -188.2977627 | N106: ='Parry Small'!W22/100*Hamilton_tripdata!$N9 -> 77.31973 | P106: 6 | Q106: =HLOOKUP(MAX(E106:N106),E106:N$111,P106,) -> bus access
C107: ='Parry Small'!Y23/100*Hamilton_tripdata!$O9 -> 25704 | D107: ='Parry Small'!X23/100*Hamilton_tripdata!$O9 -> 8859.523563 | E107: ='Parry Small'!N23/100*Hamilton_tripdata!$O9 -> 0 | F107: ='Parry Small'!O23/100*Hamilton_tripdata!$O9 -> 0 | G107: ='Parry Small'!P23/100*Hamilton_tripdata!$O9 -> 3086.168308 | H107: ='Parry Small'!Q23/100*Hamilton_tripdata!$O9 -> -799.9474929 | I107: ='Parry Small'!R23/100*Hamilton_tripdata!$O9 -> 342.0906655 | J107: ='Parry Small'!S23/100*Hamilton_tripdata!$O9 -> -242.8856155 | K107: ='Parry Small'!T23/100*Hamilton_tripdata!$O9 -> 969.9684459 | L107: ='Parry Small'!U23/100*Hamilton_tripdata!$O9 -> 3839.458762 | M107: ='Parry Small'!V23/100*Hamilton_tripdata!$O9 -> 2824.46644 | N107: ='Parry Small'!W23/100*Hamilton_tripdata!$O9 -> -1159.79595 | P107: 5 | Q107: =HLOOKUP(MAX(E107:N107),E107:N$111,P107,) -> bus resource
C108: ='Parry Small'!Y27/100*Hamilton_tripdata!$N9 -> 46090.8 | D108: ='Parry Small'!X27/100*Hamilton_tripdata!$N9 -> -3666.744655 | E108: ='Parry Small'!N27/100*Hamilton_tripdata!$N9 -> -300.0452255 | F108: ='Parry Small'!O27/100*Hamilton_tripdata!$N9 -> 1101.478837 | G108: ='Parry Small'!P27/100*Hamilton_tripdata!$N9 -> -5552.175839 | H108: ='Parry Small'!Q27/100*Hamilton_tripdata!$N9 -> 1893.91331 | I108: ='Parry Small'!R27/100*Hamilton_tripdata!$N9 -> -809.9157386 | J108: ='Parry Small'!S27/100*Hamilton_tripdata!$N9 -> 0 | K108: ='Parry Small'!T27/100*Hamilton_tripdata!$N9 -> 0 | L108: ='Parry Small'!U27/100*Hamilton_tripdata!$N9 -> 0 | M108: ='Parry Small'!V27/100*Hamilton_tripdata!$N9 -> 0 | N108: ='Parry Small'!W27/100*Hamilton_tripdata!$N9 -> 0 | P108: 4 | Q108: =HLOOKUP(MAX(E108:N108),E108:N$111,P108,) -> bus access
C109: ='Parry Small'!Y32/100*Hamilton_tripdata!$N9 -> 36231.6 | D109: ='Parry Small'!X32/100*Hamilton_tripdata!$N9 -> -4850.470335 | E109: ='Parry Small'!N32/100*Hamilton_tripdata!$N9 -> -205.9100614 | F109: ='Parry Small'!O32/100*Hamilton_tripdata!$N9 -> 755.9046295 | G109: ='Parry Small'!P32/100*Hamilton_tripdata!$N9 -> -3702.858945 | H109: ='Parry Small'!Q32/100*Hamilton_tripdata!$N9 -> 2210.363209 | I109: ='Parry Small'!R32/100*Hamilton_tripdata!$N9 -> -945.2428163 | J109: ='Parry Small'!S32/100*Hamilton_tripdata!$N9 -> 0 | K109: ='Parry Small'!T32/100*Hamilton_tripdata!$N9 -> 0 | L109: ='Parry Small'!U32/100*Hamilton_tripdata!$N9 -> -2503.617167 | M109: ='Parry Small'!V32/100*Hamilton_tripdata!$N9 -> -778.9760738 | N109: ='Parry Small'!W32/100*Hamilton_tripdata!$N9 -> 319.8668898 | P109: 3 | Q109: =HLOOKUP(MAX(E109:N109),E109:N$111,P109,) -> bus access
C110: ='Parry Small'!Y33/100*Hamilton_tripdata!$O9 -> 138727.52 | D110: ='Parry Small'!X33/100*Hamilton_tripdata!$O9 -> 63174.68622 | E110: ='Parry Small'!N33/100*Hamilton_tripdata!$O9 -> 0 | F110: ='Parry Small'!O33/100*Hamilton_tripdata!$O9 -> 0 | G110: ='Parry Small'!P33/100*Hamilton_tripdata!$O9 -> 675.1259099 | H110: ='Parry Small'!Q33/100*Hamilton_tripdata!$O9 -> -403.0057571 | I110: ='Parry Small'!R33/100*Hamilton_tripdata!$O9 -> 172.341946 | J110: ='Parry Small'!S33/100*Hamilton_tripdata!$O9 -> -2910.334683 | K110: ='Parry Small'!T33/100*Hamilton_tripdata!$O9 -> 11622.47836 | L110: ='Parry Small'!U33/100*Hamilton_tripdata!$O9 -> 45647.34556 | M110: ='Parry Small'!V33/100*Hamilton_tripdata!$O9 -> 14202.72656 | N110: ='Parry Small'!W33/100*Hamilton_tripdata!$O9 -> -5831.991665 | P110: 2 | Q110: =HLOOKUP(MAX(E110:N110),E110:N$111,P110,) -> bus resource
E111: ='Parry Small'!N16&" "&'Parry Small'!N17 -> car resource | F111: ='Parry Small'!N16&" "&'Parry Small'!O17 -> car externality | G111: ='Parry Small'!P16&" "&'Parry Small'!P17 -> bus resource | H111: ='Parry Small'!P16&" "&'Parry Small'!Q17 -> bus access | I111: ='Parry Small'!P16&" "&'Parry Small'!R17 -> bus externality | J111: ='Parry Small'!S16&" "&'Parry Small'!S17 -> car resource | K111: ='Parry Small'!S16&" "&'Parry Small'!T17 -> car externality | L111: ='Parry Small'!U16&" "&'Parry Small'!U17 -> bus resource | M111: ='Parry Small'!U16&" "&'Parry Small'!V17 -> bus access | N111: ='Parry Small'!U16&" "&'Parry Small'!W17 -> bus externality

Sheet timetable
A1: bus route frequency
B2: 6:30-8:30 | C2: 10:30-12:30 | E2: buses
A3: 1 | B3: 6 | C3: 4 | E3: =B3/2 -> 3
A4: 2 | B4: 5 | C4: 3 | E4: =B4/2 -> 2.5
A5: 3 | B5: 5 | C5: 4 | E5: 2.5
A6: 4 | B6: 4 | C6: 3 | E6: 2
A7: 5 | B7: 4 | C7: 3 | E7: 2
A8: 6 | B8: 4 | C8: 4 | E8: 2
A9: 7 | B9: 4 | C9: 4 | E9: 2
A10: 8 | B10: 5 | C10: 6 | E10: 2.5
A11: 9 | B11: 4 | C11: 4 | E11: 2
A12: 10 | B12: 4 | C12: 3 | E12: 2
A13: 11 | B13: 4 | C13: 4 | E13: 2
A14: 12 | B14: 4 | C14: 4 | E14: 2
A15: 13 | B15: 4 | C15: 4 | E15: 2
A16: 14 | B16: 4 | C16: 3 | E16: 2
A17: 15 | B17: 3 | C17: 3 | E17: 1.5
A18: 16 | B18: 4 | C18: 4 | E18: 2
A19: 17 | B19: 4 | C19: 4 | E19: 2
A20: 18 | B20: 5 | C20: 4 | E20: 2.5
A21: 26 | B21: 4 | C21: 4 | E21: 2
A22: 30 | B22: 3 | C22: 2 | E22: 1.5
B23: =AVERAGE(B3:B22) -> 4.2 | C23: =AVERAGE(C3:C22) -> 3.7 | E23: =SUM(E3:E22) -> 42

Sheet capcost
J1: annual* | K1: cost/seat | M1: peak vehicle
B2: length | C2: seats | D2: max capac | E2: ave load | F2: cost | G2: cost/seat | H2: age | J2: $(000) | K2: $(000) | M2: $ /seat km
A3: mini | B3: 8 | C3: 19 | D3: 19 | E3: 19 | F3: 115 | G3: =F3/E3 -> 6.052631579 | H3: 10 | J3: 15.8 | K3: =J3/D3 -> 0.8315789474 | M3: =2/$B$17/2 *K3 /400*1000 -> 0.06929824561 | P3: each peak trip requires 2t/p buses
A4: midi | B4: 10 | C4: 29 | D4: 40 | E4: 34 | F4: 280 | G4: =F4/E4 -> 8.235294118 | H4: 20 | J4: 27.2 | K4: =J4/D4 -> 0.68 | M4: 0.05666666667 | Q4: where t = trip time and p = length of peak
A5: rigid | B5: 11.7 | C5: 39 | D5: 64 | E5: 47 | F5: 380 | G5: 8.085106383 | H5: 20 | J5: 37 | K5: =J5/D5 -> 0.578125 | M5: 0.04817708333 | P5: cost for 1 km = 2/speed /p * cost per bus / no of peaks
A6: rigid gas | B6: 11.7 | C6: 39 | D6: 64 | E6: 47 | F6: 430 | G6: 9.14893617 | H6: 20 | J6: 42.3 | K6: 0.6609375 | M6: 0.055078125 | P6: = 2/speed /p * cost per bus / 400
A7: long | B7: 14.5 | C7: 47 | D7: 81 | E7: 57 | F7: 400 | G7: 7.01754386 | H7: 20 | J7: 38.9 | K7: 0.4802469136 | M7: 0.04002057613
A8: artic | B8: 18 | C8: 67 | D8: 101 | E8: 80 | F8: 600 | G8: =F8/E8 -> 7.5 | H8: 20 | J8: 58.4 | K8: 0.5782178218 | M8: 0.04818481848
A10: lrt | B10: 30 | C10: 58 | D10: 190 | E10: 130 | F10: 4500 | G10: 34.61538462 | H10: 35 | J10: 350.2 | K10: 1.843157895 | M10: =2/$B$17/2 *K10 /400*1000 -> 0.1535964912
A12: emu 3-car | B12: 72 | C12: 265 | D12: 750 | E12: 400 | F12: 8000 | G12: 20 | H12: 35 | J12: 627 | K12: 0.836 | M12: =2/$B$18/2 *K12 /400*1000 -> 0.0418
A13: dmu 3-car | B13: 72 | C13: 265 | D13: 750 | E13: 400 | F13: 8800 | G13: 22 | H13: 35 | J13: 687 | K13: 0.916 | M13: =2/$B$18/2 *K13 /400*1000 -> 0.0458
A15: *Booz Allen and Hamilton/IPW
A17: Assumes | B17: 30 | C17: km/h bus
B18: 50 | C18: km/h train

Sheet STCC Data
A1: Unit costs | B1: DATA FROM STCC
A2: all costs in cents | B2: CAR | D2: BUS | F2: TRAIN
B3: Per vehicle km | D3: Per vehicle km | F3: Per train km
B4: Peak | C4: Off peak | D4: Peak | E4: Off peak | F4: Peak | G4: Off peak
A5: Per Vehicle
A7: A Private resource costs
A8: Operations and vehicle costs | B8: 15.4 | C8: 14.6
A9: Operations - time | B9: 21.6 | C9: 17.8
A10: Accidents internal | B10: -3.3 | C10: 5.2 | D10: 9.8 | E10: 13.2
A11: Parking | B11: 60 | C11: 30
A13: B Private charges
A14: Fuel duty | B14: 3.8 | C14: 3.3 | D14: =B14*30/12 -> 9.5 | E14: =C14*30/12 -> 8.25
A15: Fares
A17: C. Provider costs
A18: Road infrastruction o&m | B18: 0.1 | C18: 0.1 | D18: 5 | E18: 5
A19: Operations and vehicle costs | D19: =D47*D33 -> 0 | E19: =E47*E33 -> 4.653793393 | F19: =F47*F33 -> 5400 | G19: =G47*G33 -> 300
B20: =B18+B19 -> 0.1 | C20: 0.1 | D20: 5 | E20: 9.653793393 | F20: 5400 | G20: 300
A22: D. External costs
A23: Congestion | B23: 36 | C23: 8 | D23: =B23*3 -> 108 | E23: =C23*3 -> 24
A24: User economies of scale
A25: accidents external | B25: -3 | C25: 2.3 | D25: -12.2 | E25: 5.9
A26: Environmental | B26: 1.8 | C26: 1.5 | D26: 38.2 | E26: 26.7
B27: =SUM(B23:B26) -> 34.8 | C27: =SUM(C23:C26) -> 11.8 | D27: =SUM(D23:D26) -> 134 | E27: =SUM(E23:E26) -> 56.6
A29: Per person costs
A30: cents | B30: CAR | D30: BUS | F30: TRAIN
B31: Per vehicle km | D31: Per vehicle km | F31: Per train km
B32: Peak | C32: Off peak | D32: Peak | E32: Off peak | F32: Peak | G32: Off peak
A33: Occupancy | B33: =Hamilton_tripdata!#REF! ->  | C33: =Hamilton_tripdata!#REF! ->  | D33: =Hamilton_tripdata!Q8 -> 0 | E33: =Hamilton_tripdata!I7 -> 0.4950844035 | F33: 120 | G33: 60
A35: A Private resource costs
A36: Operations and vehicle costs | B36: =B8/1.4 -> 11 | C36: =C8/1.6 -> 9.125
A37: Operations - time | B37: =B9 -> 21.6 | C37: =C9 -> 17.8 | D37: 58 | E37: 58 | F37: 34.8 | G37: 34.8
A38: Accidents internal | B38: =B10/1.4 -> -2.357142857 | C38: =C10/1.6 -> 3.25 | D38: -1.1 | E38: 0.7
A39: Parking | B39: =B11/1.4 -> 42.85714286 | C39: =C11/1.6 -> 18.75
A41: B Private charges
A42: Fuel duty | B42: =B14/1.4 -> 2.714285714 | C42: =C14/1.6 -> 2.0625
A43: Fares | D43: 20.3 | E43: 21 | F43: 13 | G43: 13
A45: C. Provider costs
A46: Road infrastruction o&m | B46: =B18/1.4 -> 0.07142857143 | C46: =C18/1.6 -> 0.0625 | D46: 0.6 | E46: 0.3
A47: Operations and vehicle costs | D47: 45.3 | E47: 9.4 | F47: =22.5*2 -> 45 | G47: 5
B48: =B46+B47 -> 0.07142857143 | C48: 0.0625 | D48: 45.9 | E48: 9.7 | F48: 45 | G48: 5
A50: D. External costs
A51: Congestion | B51: =B23/1.4 -> 25.71428571 | C51: =C23/1.6 -> 5 | D51: =D23/D33 ->  | E51: =E23/E33 -> 48.47658264
A52: User economies of scale | D52: -13.9 | E52: -5.5 | F52: =D52 -> -13.9 | G52: =E52 -> -5.5
A53: accidents external | B53: =B25/1.4 -> -2.142857143 | C53: =C25/1.6 -> 1.4375 | D53: -1.4 | E53: 0.3
A54: Environmental | B54: =B26/1.4 -> 1.285714286 | C54: =C26/1.6 -> 0.9375 | D54: 3.6 | E54: 1.5 | F54: 0 | G54: 0
B55: =SUM(B51:B54) -> 24.85714286 | C55: 7.375 | E55: 44.77658264 | F55: -13.9 | G55: -5.5

Sheet Sheet1
B1: fix fares
B2: 14.28571429 | C2: 15.98733675
B3: 16.21621622 | C3: 11.90173443
B5: fix headway
B6: 17 | C6: 17
B7: 17 | C7: 17
B8: 20.53571429 | C8: 73.6849643
B9: 21.9047619 | C9: 20.75641079
B11: 17 | C11: 17
B12: 27.11864407 | C12: 76.86509024
B14: 17 | C14: 17
B15: 17 | C15: 17
B16: 41.03489771 | C16: 71.5113119
B17: 36.47058824 | C17: 23.51301503
B19: no fix

Sheet EEM_Values
A3: Component | B3: Am Peak | C3: Inter peak | D3: Comment
A4: Car in vehicle time | B4: 32.96 | C4: 38.71 | D4: c/min | E4: In car cost from TN15 Table5
A5: Car distance | B5: 17 | C5: 17 | D5: c/km | E5: In car cost from TN15 Table1
A6: PT Ride Cost | B6: 17.41 | C6: 15.92 | D6: c/min | E6: As per TN15 with no “Worktravel ”costs
A7: Walk cost | B7: 34.82 | C7: 31.84 | D7: c/min | E7: Twice the ride cost
A8: Wait Cost | B8: 34.82 | C8: 31.84 | D8: c/min | E8: Twice the ride cost
A9: active cost | B9: =60/15*B6 -> 69.64 | C9: =60/15*C6 -> 63.68 | D9: c/km | E9: 15 km/h * walk cost
A10: wait time coef | B10: 5 | C10: 0.16
B13: am peak | C13: interpeak
B14: $/hour | C14: $/hour
A15: Overall base | B15: 15.13 | C15: 17.95
A16: Congestion | B16: 3.88 | C16: 3.6
A17: Total | B17: =B15+B16 -> 19.01 | C17: =C15+C16 -> 21.55
A19: Emissions | B19: kg/car-km | C19: $ per tonne | D19: $ per car.km
A20: CO2 | B20: 2 | C20: 40
A21: Other | D21: 0.01

Sheet ONA
B6: THIS OPTION IS NOT AVAILABLE YET
